Workbook

Sheet 1. Information Sheet
M12: Version | N12: 2.3
E14: Utility Name | F14: Haldimand County Hydro Inc.
E16: Service Territory | F16: (if applicable)
E18: Assigned EB Number | F18: EB-2012-0129
E20: Name of Contact and Title | F20: Jacqueline A. Scott
E22: Phone Number | F22: 905-765-5211 ext.2237
E24: Email Address | F24: jscott@hchydro.ca
E26: We are applying for rates effective | F26: 2013-05-01
B29: Notes
C31: Pale green cells represent input cells.
C33: Pale blue cells represent drop-down lists. The applicant should select the appropriate item from the drop-down list.
C35: White cells contain fixed values, automatically generated values or formulae.

Sheet 2. Table of Contents
D14: 1. Information Sheet | H14: 8. Calculation of Def-Var RR
D15: 2. Table of Contents | H15: 9. Rev2Cost_GDPIPI
D16: 3. Rate Class Selection | H16: 10. Other Charges & LF
D17: 4. Current Tariff Schedule | H17: 11. Proposed Rates
D18: 5. 2013 Continuity Schedule | H18: 12. Summary Sheet
D19: 6. Billing Det. for Def-Var | H19: 13. Final Tariff Schedule
D20: 7. Cost Allocation for Def-Var | H20: 14. Bill Impacts

Sheet 3. Rate Class Selection
A12: Select the appropriate rate classes as they appear on your most recent Board-Approved Tariff of Rates and Charges, including the MicroFit Class.
A14: How many classes are listed on your most recent Board-Approved Tariff of Rates and Charges? | J14: 1
A16: Select Your Rate Classes from the Blue Cells below. Please ensure that a rate class is assigned to each shaded cell.
B18: Rate Class Classification
A19: 1 | B19: Embedded Distributor

Sheet 4. Current Tariff Schedule
Z1: 3 | AA1: January | AB1: ≥
AA2: February
AA3: March
AA4: April
AA5: May
AA6: June
AA7: July
AA8: August
AA9: September
AA10: October
AA11: November
B12: For each class, Applicants are required to copy and paste the class descriptions (located directly under the class name) and the description of the applicability of those rates (description is found under the class name and directly under the word "APPLICATION"). By using the drop-down lists located under the column labeled "Rate Description", please select the descriptions of the rates and charges that BEST MATCHES the descriptions on your most recent Board-Approved Tariff of Rates and Charges. If the description is not found in the drop-down list, please enter the description in the green cells under the correct class exactly as it appears on the tariff. Please do not enter more than one "Service Charge" for each class for which a base monthly fixed charge applies. **Note: If the current RRRP consists of only one line on the current tariff schedule, enter the same rate for "Rural Rate Protection Charge - effective until April 30, 2012" and "Rural Rate Protection Charge - effective on and after May 1, 2012". | AA12: December
B21: =IF(ISBLANK('1. Information Sheet'!F14), "Please Choose Distributor Name on Sheet 1", '1. Information Sheet'!F14) -> Haldimand County Hydro Inc.
A22: Embedded Distributor | B22: TARIFF OF RATES AND CHARGES
A24: Embedded Distributor | B24: Embedded Distributor Service Classification
A25: Embedded Distributor
A26: Embedded Distributor | B26: This classification applies to Hydro One Networks Inc., an electricity distributor licensed by the Board, and provided electricity by means of Haldimand County Hydro Inc.'s distribution facilities. Further servicing details are available in the distributor’s Conditions of Service.
A27: Embedded Distributor
A28: Embedded Distributor
A29: Embedded Distributor
A30: Embedded Distributor
A31: Embedded Distributor
A32: Embedded Distributor | B32: APPLICATION
A33: Embedded Distributor
A34: Embedded Distributor | B34: The application of these rates and charges shall be in accordance with the Licence of the Distributor and any Code or Order of the Board, and amendments thereto as approved by the Board, which may be applicable to the administration of this schedule.
A35: Embedded Distributor
A36: Embedded Distributor
A37: Embedded Distributor | B37: No rates and charges for the distribution of electricity and charges to meet the costs of any work or service done or furnished for the purpose of the distribution of electricity shall be made except as permitted by this schedule, unless required by the Distributor’s Licence or a Code or Order of the Board, and amendments thereto as approved by the Board, or as specified herein.
A38: Embedded Distributor
A39: Embedded Distributor
A40: Embedded Distributor
A41: Embedded Distributor | B41: Unless specifically noted, this schedule does not contain any charges for the electricity commodity, be it under the Regulated Price Plan, a contract with a retailer or the wholesale market price, as applicable.
A42: Embedded Distributor
A43: Embedded Distributor
A44: Embedded Distributor | B44: It should be noted that this schedule does not list any charges, assessments or credits that are required by law to be invoiced by a distributor and that are not subject to Board approval, such as the Debt Retirement Charge, the Global Adjustment, the Ontario Clean Energy Benefit and the HST.
A45: Embedded Distributor
A46: Embedded Distributor
A47: Embedded Distributor
A48: Embedded Distributor | B48: MONTHLY RATES AND CHARGES - Delivery Component (If applicable, Effective Date MUST be included in rate description)
A49: Embedded Distributor | B49: Service Charge | H49: $ | I49: 183.44 | K49: 1_C_MSC
A50: Embedded Distributor | B50: Distribution Volumetric Rate | H50: $/kW | I50: 0.5653 | K50: 1_C_VC
A51: Embedded Distributor | B51: Rate Rider for Global Adjustment Sub-Account Disposition (2012) – Effective until April 30, 2013 Applicable only for Non-RPP Customers | H51: $/kW | I51: -0.3758 | K51: 1_C_VC_GA_Rate_Rider_kW_1 | L51: 2013-04-30
A52: Embedded Distributor | B52: Rate Rider for Deferral/Variance Account Disposition (2012) – Effective until April 30, 2013 | H52: $/kW | I52: -0.2905 | K52: 1_C_VC_Rate_Rider_kW_1 | L52: 2013-04-30
A53: Embedded Distributor | B53: Retail Transmission Rate - Network Service Rate | H53: $/kW | I53: 2.1063 | K53: 1_C_RTSR_Network
A54: Embedded Distributor | B54: Retail Transmission Rate - Line and Transformation Connection Service Rate | H54: $/kW | I54: 1.8422 | K54: 1_C_RTSR_Connection
A55: Embedded Distributor
A56: Embedded Distributor
A57: Embedded Distributor
A58: Embedded Distributor
A59: Embedded Distributor
A60: Embedded Distributor
A61: Embedded Distributor
A62: Embedded Distributor
A63: Embedded Distributor
A64: Embedded Distributor
A65: Embedded Distributor
A66: Embedded Distributor
A67: Embedded Distributor
A68: Embedded Distributor
A69: Embedded Distributor
A70: Embedded Distributor
A71: Embedded Distributor
A72: Embedded Distributor
A73: Embedded Distributor
A74: Embedded Distributor
A75: Embedded Distributor
A76: Embedded Distributor
A77: Embedded Distributor
A78: Embedded Distributor
A79: Embedded Distributor | B79: MONTHLY RATES AND CHARGES - Regulatory Component
A80: Embedded Distributor
A81: Embedded Distributor | B81: Wholesale Market Service Rate | H81: $/kWh | I81: 0.0052 | K81: 1_C_WMSR
A82: Embedded Distributor | B82: Rural Rate Protection Charge - effective until April 30, 2012 | H82: $/kWh | I82: 0.0011 | K82: 1_C_RRPC_untilApril302012 | L82: 2012-04-30
A83: Embedded Distributor | B83: Rural Rate Protection Charge - effective on and after May 1, 2012 | H83: $/kWh | I83: 0.0011 | K83: 1_C_RRPC_AfterMay12012 | L83: 2012-05-01
A84: Embedded Distributor | B84: Standard Supply Service - Administrative Charge (if applicable) | H84: $ | I84: 0.25 | K84: 1_C_SSS

Sheet 4. Hidden (hidden)
M1: Current Rate Classes | N1: Changed to Rate Classes | O1: Values in A that are NOT in B | P1: Values in B that are Not in A | Q1: Count of A | R1: Count of B
M2: Embedded Distributor | N2: Embedded Distributor | Q2: 1 | R2: 1
A24: Residential | B24: Residential Service Classification
A25: Residential
A26: Residential
A27: Residential
A28: Residential
A29: Residential
A30: Residential
A31: Residential
A32: Residential | B32: APPLICATION
A33: Residential
A34: Residential
A35: Residential
A36: Residential
A37: Residential
A38: Residential
A39: Residential
A40: Residential
A41: Residential
A42: Residential
A43: Residential
A44: Residential
A45: Residential
A46: Residential
A47: Residential
A48: Residential | B48: MONTHLY RATES AND CHARGES - Delivery Component (If applicable, Effective Date MUST be included in rate description)
A49: Residential
A50: Residential
A51: Residential
A52: Residential
A53: Residential
A54: Residential
A55: Residential
A56: Residential
A57: Residential
A58: Residential
A59: Residential
A60: Residential
A61: Residential
A62: Residential
A63: Residential
A64: Residential
A65: Residential
A66: Residential
A67: Residential
A68: Residential
A69: Residential
A70: Residential
A71: Residential
A72: Residential
A73: Residential
A74: Residential
A75: Residential
A76: Residential
A77: Residential
A78: Residential
A79: Residential | B79: MONTHLY RATES AND CHARGES - Regulatory Component
A80: Residential
A81: Residential | B81: Wholesale Market Service Rate
A82: Residential | B82: Rural Rate Protection Charge - effective until April 30, 2012
A83: Residential | B83: Rural Rate Protection Charge - effective on and after May 1, 2012
A84: Residential | B84: Standard Supply Service - Administrative Charge (if applicable)

Sheet 5. 2013 Continuity Schedule
C15: Please complete the following continuity schedule for the following Deferral / Variance Accounts. Enter information into green cells only. If you have received approval to dispose of balances from prior years, the starting point for entries in the 2013 DVA schedule below will be the balance sheet date as per your G/L for which you received approval. For example, if in the 2012 EDR process (CoS or IRM) you received approval for the December 31, 2010 balances, the starting point for your entries below should be the adjustment column BF for principal and column BK for interest. This will allow for the correct starting point for the 2011 opening balance columns (for both principal and interest) without requiring entries dating back to the beginning of the continuity schedule ie: Jan 1, 2005. Please refer to the footnotes for further instructions.
E19: 2005 | O19: 2006 | Y19: 2007 | AI19: 2008 | AS19: 2009 | BC19: 2010 | BM19: 2011 | BZ19: 2012 | CD19: Projected Interest on Dec-31-11 Balances | CG19: 2.1.7 RRR
C20: Account Descriptions | D20: Account Number | E20: Opening Principal Amounts as of Jan-1-05 | F20: Transactions Debit / (Credit) during 2005 excluding interest and adjustments 2 | G20: Board-Approved Disposition during 2005 | H20: Adjustments during 2005 - other 2 | I20: Closing Principal Balance as of Dec-31-05 | J20: Opening Interest Amounts as of Jan-1-05 | K20: Interest Jan-1 to Dec-31-05 | L20: Board-Approved Disposition during 2005 | M20: Adjustments during 2005 - other 2 | N20: Closing Interest Amounts as of Dec-31-05 | O20: Opening Principal Amounts as of Jan-1-06 | P20: Transactions Debit / (Credit) during 2006 excluding interest and adjustments 2 | Q20: Board-Approved Disposition during 2006 | R20: Adjustments during 2006 - other 2 | S20: Closing Principal Balance as of Dec-31-06 | T20: Opening Interest Amounts as of Jan-1-06 | U20: Interest Jan-1 to Dec-31-06 | V20: Board-Approved Disposition during 2006 1 | W20: Adjustments during 2006 - other 2 | X20: Closing Interest Amounts as of Dec-31-06 | Y20: Opening Principal Amounts as of Jan-1-07 | Z20: Transactions Debit / (Credit) during 2007 excluding interest and adjustments 2 | AA20: Board-Approved Disposition during 2007 | AB20: Adjustments during 2007 - other 1 | AC20: Closing Principal Balance as of Dec-31-07 | AD20: Opening Interest Amounts as of Jan-1-07 | AE20: Interest Jan-1 to Dec-31-07 | AF20: Board-Approved Disposition during 2007 | AG20: Adjustments during 2007 - other 1 | AH20: Closing Interest Amounts as of Dec-31-07 | AI20: Opening Principal Amounts as of Jan-1-08 | AJ20: Transactions Debit / (Credit) during 2008 excluding interest and adjustments 2 | AK20: Board-Approved Disposition during 2008 | AL20: Adjustments during 2008 - other 1 | AM20: Closing Principal Balance as of Dec-31-08 | AN20: Opening Interest Amounts as of Jan-1-08 | AO20: Interest Jan-1 to Dec-31-08 | AP20: Board-Approved Disposition during 2008 | AQ20: Adjustments during 2008 - other 1 | AR20: Closing Interest Amounts as of Dec-31-08 | AS20: Opening Principal Amounts as of Jan-1-09 | AT20: Transactions Debit / (Credit) during 2009 excluding interest and adjustments 2 | AU20: Board-Approved Disposition during 2009 | AV20: Adjustments during 2009 - other 1 | AW20: Closing Principal Balance as of Dec-31-09 | AX20: Opening Interest Amounts as of Jan-1-09 | AY20: Interest Jan-1 to Dec-31-09 | AZ20: Board-Approved Disposition during 2009 | BA20: Adjustments during 2009 - other 1 | BB20: Closing Interest Amounts as of Dec-31-09 | BC20: Opening Principal Amounts as of Jan-1-10 | BD20: Transactions Debit / (Credit) during 2010 excluding interest and adjustments 2 | BE20: Board-Approved Disposition during 2010 | BF20: Adjustments during 2010 - other 1 | BG20: Closing Principal Balance as of Dec-31-10 | BH20: Opening Interest Amounts as of Jan-1-10 | BI20: Interest Jan-1 to Dec-31-10 | BJ20: Board-Approved Disposition during 2010 | BK20: Adjustments during 2010 - other 2 | BL20: Closing Interest Amounts as of Dec-31-10 | BM20: Opening Principal Amounts as of Jan-1-11 | BN20: Transactions Debit / (Credit) during 2011 excluding interest and adjustments 2 | BO20: Board-Approved Disposition during 2011 | BP20: Other 1 Adjustments during Q1 2011 | BQ20: Other 1 Adjustments during Q2 2011 | BR20: Other 1 Adjustments during Q3 2011 | BS20: Other 1 Adjustments during Q4 2011 | BT20: Closing Principal Balance as of Dec-31-11 | BU20: Opening Interest Amounts as of Jan-1-11 | BV20: Interest Jan-1 to Dec-31-11 | BW20: Board-Approved Disposition during 2011 | BX20: Adjustments during 2011 - other 1 | BY20: Closing Interest Amounts as of Dec-31-11 | BZ20: Principal Disposition during 2012 - instructed by Board | CA20: Interest Disposition during 2012 - instructed by Board | CB20: Closing Principal Balances as of Dec 31-11 Adjusted for Dispositions during 2012 | CC20: Closing Interest Balances as of Dec 31-11 Adjusted for Dispositions during 2012 | CD20: Projected Interest from Jan 1, 2012 to December 31, 2012 on Dec 31 -11 balance adjusted for disposition during 2012 3 | CE20: Projected Interest from January 1, 2013 to April 30, 2013 on Dec 31 -11 balance adjusted for disposition during 2012 3 | CF20: Total Claim | CG20: As of Dec 31-11 | CH20: Variance RRR vs. 2011 Balance (Principal + Interest)
CF22: Claim before Forecasted Transactions
C23: Group 1 Accounts
A24: 1 | C24: LV Variance Account | D24: 1550 | I24: =E24+F24-G24+H24 -> 0 | N24: =J24+K24-L24+M24 -> 0 | O24: =I24 -> 0 | S24: =O24+P24-Q24+R24 -> 0 | T24: =N24 -> 0 | X24: =T24+U24-V24+W24 -> 0 | Y24: =S24 -> 0 | AC24: =Y24+Z24-AA24+AB24 -> 0 | AD24: =X24 -> 0 | AH24: =AD24+AE24-AF24+AG24 -> 0 | AI24: =AC24 -> 0 | AM24: =AI24+AJ24-AK24+AL24 -> 0 | AN24: =AH24 -> 0 | AR24: =AN24+AO24-AP24+AQ24 -> 0 | AS24: =AM24 -> 0 | AW24: =AS24+AT24-AU24+AV24 -> 0 | AX24: =AR24 -> 0 | BB24: =AX24+AY24-AZ24+BA24 -> 0 | BC24: =AW24 -> 0 | BG24: =BC24+BD24-BE24+BF24 -> 0 | BH24: =BB24 -> 0 | BL24: =BH24+BI24-BJ24+BK24 -> 0 | BM24: =BG24 -> 0 | BT24: =BM24+BN24-BO24+SUM(BP24:BS24) -> 0 | BU24: =BL24 -> 0 | BY24: =BU24+BV24-BW24+BX24 -> 0 | CB24: =BT24-BZ24 -> 0 | CC24: =BY24-CA24 -> 0 | CD24: =CB24*1.47% -> 0 | CF24: =SUM(CB24:CE24) -> 0 | CH24: =CG24-SUM(BT24,BY24) -> 0
A25: 2 | C25: RSVA - Wholesale Market Service Charge | D25: 1580 | I25: 0 | N25: =J25+K25-L25+M25 -> 0 | O25: =I25 -> 0 | S25: =O25+P25-Q25+R25 -> 0 | T25: =N25 -> 0 | X25: =T25+U25-V25+W25 -> 0 | Y25: =S25 -> 0 | AC25: =Y25+Z25-AA25+AB25 -> 0 | AD25: =X25 -> 0 | AH25: =AD25+AE25-AF25+AG25 -> 0 | AI25: =AC25 -> 0 | AM25: =AI25+AJ25-AK25+AL25 -> 0 | AN25: =AH25 -> 0 | AR25: =AN25+AO25-AP25+AQ25 -> 0 | AS25: =AM25 -> 0 | AW25: =AS25+AT25-AU25+AV25 -> 0 | AX25: =AR25 -> 0 | BB25: =AX25+AY25-AZ25+BA25 -> 0 | BC25: =AW25 -> 0 | BF25: =-113861-5682+28315 -> -91228 | BG25: =BC25+BD25-BE25+SUM(BF25:BF25) -> -91228 | BH25: =BB25 -> 0 | BK25: =-617.81-42.02+322.11 -> -337.72 | BL25: =BH25+BI25-BJ25+BK25 -> -337.72 | BM25: =BG25 -> -91228 | BN25: =-82662.57-2362.7 -> -85025.27 | BT25: =BM25+BN25-BO25+SUM(BP25:BS25) -> -176253.27 | BU25: =BL25 -> -337.72 | BV25: =-1893.66-58.35-287.75 -> -2239.76 | BY25: =BU25+BV25-BW25+BX25 -> -2577.48 | BZ25: -91228 | CA25: -2264.6 | CB25: =BT25-BZ25 -> -85025.27 | CC25: =BY25-CA25 -> -312.88 | CD25: -1249.871469 | CE25: =CB25*1.47%*4/12 -> -416.623823 | CF25: =SUM(CB25:CE25) -> -87004.64529 | CG25: =-173502.44-5328.31 -> -178830.75 | CH25: =CG25-SUM(BT25,BY25) -> 0
A26: 3 | C26: RSVA - Retail Transmission Network Charge | D26: 1584 | I26: 0 | N26: 0 | O26: 0 | S26: 0 | T26: 0 | X26: 0 | Y26: 0 | AC26: 0 | AD26: 0 | AH26: 0 | AI26: 0 | AM26: 0 | AN26: 0 | AR26: 0 | AS26: 0 | AW26: 0 | AX26: 0 | BB26: 0 | BC26: 0 | BF26: =266366.63-210418 -> 55948.63 | BG26: 55948.63 | BH26: 0 | BK26: =2385.34-2556.64 -> -171.3 | BL26: -171.3 | BM26: 55948.63 | BN26: =-24536.59-224.78 -> -24761.37 | BT26: 31187.26 | BU26: -171.3 | BV26: 1815.97 | BY26: 1644.67 | BZ26: 55948.63 | CA26: 1956.38 | CB26: -24761.37 | CC26: -311.71 | CD26: -363.992139 | CE26: =CB26*1.47%*4/12 -> -121.330713 | CF26: -25558.40285 | CG26: =32831.93 -> 32831.93 | CH26: 0
A27: 4 | C27: RSVA - Retail Transmission Connection Charge | D27: 1586 | I27: =E27+F27-G27+H27 -> 0 | N27: 0 | O27: 0 | S27: 0 | T27: 0 | X27: 0 | Y27: 0 | AC27: 0 | AD27: 0 | AH27: 0 | AI27: 0 | AM27: 0 | AN27: 0 | AR27: 0 | AS27: 0 | AW27: 0 | AX27: 0 | BB27: 0 | BC27: 0 | BF27: =174759.28-152108 -> 22651.28 | BG27: 22651.28 | BH27: 0 | BK27: =1686.68-1859.38 -> -172.7 | BL27: -172.7 | BM27: 22651.28 | BN27: =-22517.69+1.07 -> -22516.62 | BT27: 134.66 | BU27: -172.7 | BV27: 961.36 | BY27: 788.66 | BZ27: 22651.28 | CA27: 1016.62 | CB27: -22516.62 | CC27: -227.96 | CD27: -330.994314 | CE27: -110.331438 | CF27: -23185.90575 | CG27: 923.32 | CH27: 0
A28: 5 | C28: RSVA - Power (excluding Global Adjustment) | D28: 1588 | I28: 0 | N28: 0 | O28: 0 | S28: 0 | T28: 0 | X28: 0 | Y28: 0 | AC28: 0 | AD28: 0 | AH28: 0 | AI28: 0 | AM28: 0 | AN28: 0 | AR28: 0 | AS28: 0 | AW28: 0 | AX28: 0 | BB28: 0 | BC28: 0 | BF28: =-134590.62+67899 -> -66691.62 | BG28: -66691.62 | BH28: 0 | BK28: =-1023.01+815.5 -> -207.51 | BL28: -207.51 | BM28: -66691.62 | BN28: -45515.79 | BT28: -112207.41 | BU28: -207.51 | BV28: =-1315.65-687.76 -> -2003.41 | BY28: -2210.92 | BZ28: -66691.62 | CA28: -1847.39 | CB28: -45515.79 | CC28: -363.53 | CD28: -669.082113 | CE28: -223.027371 | CF28: -46771.42948 | CG28: =-114418.33 -> -114418.33 | CH28: 0
A29: 6 | C29: RSVA - Power - Sub-account - Global Adjustment | D29: 1588 | I29: 0 | N29: 0 | O29: 0 | S29: 0 | T29: 0 | X29: 0 | Y29: 0 | AC29: 0 | AD29: 0 | AH29: 0 | AI29: 0 | AM29: 0 | AN29: 0 | AR29: 0 | AS29: 0 | AW29: 0 | AX29: 0 | BB29: 0 | BC29: 0 | BF29: =-20360-81081 -> -101441 | BG29: -101441 | BH29: 0 | BK29: =360.66-1413.16 -> -1052.5 | BL29: -1052.5 | BM29: -101441 | BN29: =37573.23-1.17 -> 37572.06 | BT29: -63868.94 | BU29: -1052.5 | BV29: =-1328.53+823.82 -> -504.71 | BY29: -1557.21 | BZ29: -101441 | CA29: -2643.5 | CB29: 37572.06 | CC29: 1086.29 | CD29: 552.309282 | CE29: 184.103094 | CF29: 39394.76238 | CG29: =-65426.15 -> -65426.15 | CH29: 0
A30: 7 | C30: Recovery of Regulatory Asset Balances | D30: 1590 | I30: 0 | N30: 0 | O30: 0 | S30: 0 | T30: 0 | X30: 0 | Y30: 0 | AC30: 0 | AD30: 0 | AH30: 0 | AI30: 0 | AM30: 0 | AN30: 0 | AR30: 0 | AS30: 0 | AW30: 0 | AX30: 0 | BB30: 0 | BC30: 0 | BG30: 0 | BH30: 0 | BL30: 0 | BM30: 0 | BT30: 0 | BU30: 0 | BY30: 0 | CB30: 0 | CC30: 0 | CD30: 0 | CE30: 0 | CF30: 0 | CH30: 0
A31: 8 | C31: Disposition and Recovery/Refund of Regulatory Balances (2008)5 | D31: 1595 | I31: 0 | N31: 0 | O31: =I31 -> 0 | S31: 0 | T31: =N31 -> 0 | X31: 0 | Y31: =S31 -> 0 | AC31: 0 | AD31: =X31 -> 0 | AH31: 0 | AI31: =AC31 -> 0 | AM31: 0 | AN31: =AH31 -> 0 | AR31: 0 | AS31: =AM31 -> 0 | AW31: 0 | AX31: =AR31 -> 0 | BB31: 0 | BC31: =AW31 -> 0 | BG31: 0 | BH31: =BB31 -> 0 | BL31: 0 | BM31: =BG31 -> 0 | BT31: 0 | BU31: =BL31 -> 0 | BY31: 0 | CB31: 0 | CC31: 0 | CD31: 0 | CE31: 0 | CF31: 0 | CH31: 0
A32: 9 | C32: Disposition and Recovery/Refund of Regulatory Balances (2009)5 | D32: 1595 | I32: 0 | N32: 0 | O32: 0 | S32: 0 | T32: 0 | X32: 0 | Y32: 0 | AC32: 0 | AD32: 0 | AH32: 0 | AI32: 0 | AM32: 0 | AN32: 0 | AR32: 0 | AS32: 0 | AW32: 0 | AX32: 0 | BB32: 0 | BC32: 0 | BG32: 0 | BH32: 0 | BL32: 0 | BM32: =BG32 -> 0 | BT32: 0 | BU32: =BL32 -> 0 | BY32: 0 | CB32: 0 | CC32: 0 | CD32: 0 | CE32: 0 | CF32: 0 | CH32: 0
A33: 9 | C33: Disposition and Recovery/Refund of Regulatory Balances (2010)5 | D33: 1595 | I33: =E33+F33-G33+H33 -> 0 | N33: =J33+K33-L33+M33 -> 0 | O33: =I33 -> 0 | S33: =O33+P33-Q33+R33 -> 0 | T33: =N33 -> 0 | X33: =T33+U33-V33+W33 -> 0 | Y33: =S33 -> 0 | AC33: =Y33+Z33-AA33+AB33 -> 0 | AD33: =X33 -> 0 | AH33: =AD33+AE33-AF33+AG33 -> 0 | AI33: =AC33 -> 0 | AM33: =AI33+AJ33-AK33+AL33 -> 0 | AN33: =AH33 -> 0 | AR33: =AN33+AO33-AP33+AQ33 -> 0 | AS33: =AM33 -> 0 | AW33: =AS33+AT33-AU33+AV33 -> 0 | AX33: =AR33 -> 0 | BB33: =AX33+AY33-AZ33+BA33 -> 0 | BC33: =AW33 -> 0 | BG33: 0 | BH33: =BB33 -> 0 | BL33: =BH33+BI33-BJ33+BK33 -> 0 | BM33: =BG33 -> 0 | BT33: =BM33+BN33-BO33+SUM(BP33:BS33) -> 0 | BU33: =BL33 -> 0 | BY33: =BU33+BV33-BW33+BX33 -> 0 | CB33: =BT33-BZ33 -> 0 | CC33: =BY33-CA33 -> 0 | CD33: =CB33*1.47%/12*6 -> 0 | CE33: 0 | CF33: 0 | CH33: =CG33-SUM(BT33,BY33) -> 0
C35: Group 1 Sub-Total (including Account 1588 - Global Adjustment) | E35: =SUM(E24:E33) -> 0 | F35: =SUM(F24:F33) -> 0 | G35: 0 | H35: 0 | I35: 0 | J35: 0 | K35: 0 | L35: 0 | M35: 0 | N35: 0 | O35: 0 | P35: 0 | Q35: 0 | R35: 0 | S35: 0 | T35: 0 | U35: 0 | V35: 0 | W35: 0 | X35: 0 | Y35: 0 | Z35: 0 | AA35: 0 | AB35: 0 | AC35: 0 | AD35: 0 | AE35: 0 | AF35: 0 | AG35: 0 | AH35: 0 | AI35: 0 | AJ35: 0 | AK35: 0 | AL35: 0 | AM35: 0 | AN35: 0 | AO35: 0 | AP35: 0 | AQ35: 0 | AR35: 0 | AS35: 0 | AT35: 0 | AU35: 0 | AV35: 0 | AW35: 0 | AX35: 0 | AY35: 0 | AZ35: 0 | BA35: 0 | BB35: 0 | BC35: 0 | BD35: 0 | BE35: 0 | BF35: -180760.71 | BG35: -180760.71 | BH35: 0 | BI35: 0 | BJ35: 0 | BK35: -1941.73 | BL35: -1941.73 | BM35: -180760.71 | BN35: -140246.99 | BO35: 0 | BP35: 0 | BQ35: 0 | BR35: =SUM(BR24:BR33) -> 0 | BS35: 0 | BT35: -321007.7 | BU35: -1941.73 | BV35: -1970.55 | BW35: 0 | BX35: 0 | BY35: -3912.28 | BZ35: -180760.71 | CA35: -3782.49 | CB35: -140246.99 | CC35: -129.79 | CD35: -2061.630753 | CE35: -687.210251 | CF35: -143125.621 | CG35: -324919.98 | CH35: 0
C36: Group 1 Sub-Total (excluding Account 1588 - Global Adjustment) | E36: =E35-E37 -> 0 | F36: =F35-F37 -> 0 | G36: =G35-G37 -> 0 | H36: 0 | I36: 0 | J36: 0 | K36: 0 | L36: =L35-L37 -> 0 | M36: =M35-M37 -> 0 | N36: 0 | O36: 0 | P36: 0 | Q36: 0 | R36: 0 | S36: 0 | T36: 0 | U36: 0 | V36: =V35-V37 -> 0 | W36: =W35-W37 -> 0 | X36: =X35-X37 -> 0 | Y36: 0 | Z36: 0 | AA36: 0 | AB36: 0 | AC36: 0 | AD36: 0 | AE36: 0 | AF36: =AF35-AF37 -> 0 | AG36: =AG35-AG37 -> 0 | AH36: =AH35-AH37 -> 0 | AI36: 0 | AJ36: 0 | AK36: 0 | AL36: 0 | AM36: 0 | AN36: 0 | AO36: 0 | AP36: =AP35-AP37 -> 0 | AQ36: =AQ35-AQ37 -> 0 | AR36: =AR35-AR37 -> 0 | AS36: 0 | AT36: 0 | AU36: 0 | AV36: 0 | AW36: 0 | AX36: 0 | AY36: 0 | AZ36: =AZ35-AZ37 -> 0 | BA36: =BA35-BA37 -> 0 | BB36: =BB35-BB37 -> 0 | BC36: 0 | BD36: 0 | BE36: 0 | BF36: -79319.71 | BG36: -79319.71 | BH36: 0 | BI36: 0 | BJ36: 0 | BK36: -889.23 | BL36: -889.23 | BM36: -79319.71 | BN36: -177819.05 | BO36: 0 | BP36: 0 | BQ36: 0 | BR36: 0 | BS36: =BS35-BS37 -> 0 | BT36: -257138.76 | BU36: -889.23 | BV36: -1465.84 | BW36: 0 | BX36: 0 | BY36: -2355.07 | BZ36: -79319.71 | CA36: -1138.99 | CB36: -177819.05 | CC36: -1216.08 | CD36: -2613.940035 | CE36: -871.313345 | CF36: -182520.3834 | CG36: =CG35-CG37 -> -259493.83 | CH36: 0
C37: =C29 -> RSVA - Power - Sub-account - Global Adjustment | D37: 1588 | E37: =E29 -> 0 | F37: =F29 -> 0 | G37: =G29 -> 0 | H37: 0 | I37: 0 | J37: 0 | K37: 0 | L37: =L29 -> 0 | M37: =M29 -> 0 | N37: 0 | O37: 0 | P37: 0 | Q37: 0 | R37: 0 | S37: 0 | T37: 0 | U37: 0 | V37: 0 | W37: 0 | X37: 0 | Y37: 0 | Z37: 0 | AA37: 0 | AB37: 0 | AC37: 0 | AD37: 0 | AE37: 0 | AF37: 0 | AG37: 0 | AH37: 0 | AI37: 0 | AJ37: 0 | AK37: 0 | AL37: 0 | AM37: 0 | AN37: 0 | AO37: 0 | AP37: =AP29 -> 0 | AQ37: =AQ29 -> 0 | AR37: =AR29 -> 0 | AS37: 0 | AT37: 0 | AU37: 0 | AV37: 0 | AW37: 0 | AX37: 0 | AY37: 0 | AZ37: 0 | BA37: 0 | BB37: 0 | BC37: 0 | BD37: 0 | BE37: 0 | BF37: -101441 | BG37: -101441 | BH37: 0 | BI37: 0 | BJ37: 0 | BK37: -1052.5 | BL37: -1052.5 | BM37: -101441 | BN37: 37572.06 | BO37: 0 | BP37: 0 | BQ37: 0 | BR37: 0 | BS37: =BS29 -> 0 | BT37: -63868.94 | BU37: -1052.5 | BV37: -504.71 | BW37: 0 | BX37: 0 | BY37: -1557.21 | BZ37: -101441 | CA37: -2643.5 | CB37: 37572.06 | CC37: 1086.29 | CD37: 552.309282 | CE37: 184.103094 | CF37: 39394.76238 | CG37: =CG29 -> -65426.15 | CH37: 0
A40: 31 | C40: Deferred Payments in Lieu of Taxes | D40: 1562 | I40: =E40+F40-G40+H40 -> 0 | N40: =J40+K40-L40+M40 -> 0 | O40: =I40 -> 0 | S40: =O40+P40-Q40+R40 -> 0 | T40: =N40 -> 0 | X40: =T40+U40-V40+W40 -> 0 | Y40: =S40 -> 0 | AC40: =Y40+Z40-AA40+AB40 -> 0 | AD40: =X40 -> 0 | AH40: =AD40+AE40-AF40+AG40 -> 0 | AI40: =AC40 -> 0 | AM40: =AI40+AJ40-AK40+AL40 -> 0 | AN40: =AH40 -> 0 | AR40: =AN40+AO40-AP40+AQ40 -> 0 | AS40: =AM40 -> 0 | AW40: =AS40+AT40-AU40+AV40 -> 0 | AX40: =AR40 -> 0 | BB40: =AX40+AY40-AZ40+BA40 -> 0 | BC40: =AW40 -> 0 | BG40: =BC40+BD40-BE40+SUM(BF40:BF40) -> 0 | BH40: =BB40 -> 0 | BL40: =BH40+BI40-BJ40+BK40 -> 0 | BM40: =BG40 -> 0 | BT40: =BM40+BN40-BO40+SUM(BP40:BS40) -> 0 | BU40: =BL40 -> 0 | BY40: =BU40+BV40-BW40+BX40 -> 0 | CB40: =BT40-BZ40 -> 0 | CC40: =BY40-CA40 -> 0 | CD40: =CB40*1.47% -> 0 | CE40: =CC40*1.47% -> 0 | CF40: 0 | CH40: 0
CH41: 0
C42: Total of Group 1 and Account 1562 | E42: =SUM(E40,E35) -> 0 | F42: =SUM(F40,F35) -> 0 | G42: =SUM(G40,G35) -> 0 | H42: 0 | I42: 0 | J42: 0 | K42: 0 | L42: 0 | M42: 0 | N42: 0 | O42: 0 | P42: 0 | Q42: 0 | R42: 0 | S42: 0 | T42: 0 | U42: 0 | V42: 0 | W42: 0 | X42: 0 | Y42: 0 | Z42: 0 | AA42: 0 | AB42: 0 | AC42: 0 | AD42: 0 | AE42: 0 | AF42: 0 | AG42: 0 | AH42: 0 | AI42: 0 | AJ42: 0 | AK42: 0 | AL42: 0 | AM42: 0 | AN42: 0 | AO42: 0 | AP42: 0 | AQ42: 0 | AR42: 0 | AS42: 0 | AT42: 0 | AU42: 0 | AV42: 0 | AW42: 0 | AX42: 0 | AY42: 0 | AZ42: 0 | BA42: 0 | BB42: 0 | BC42: 0 | BD42: 0 | BE42: 0 | BF42: -180760.71 | BG42: -180760.71 | BH42: 0 | BI42: 0 | BJ42: 0 | BK42: -1941.73 | BL42: -1941.73 | BM42: -180760.71 | BN42: -140246.99 | BO42: 0 | BP42: 0 | BQ42: 0 | BR42: 0 | BS42: =SUM(BS40,BS35) -> 0 | BT42: -321007.7 | BU42: -1941.73 | BV42: -1970.55 | BW42: 0 | BX42: 0 | BY42: -3912.28 | BZ42: -180760.71 | CA42: -3782.49 | CB42: -140246.99 | CC42: -129.79 | CD42: -2061.630753 | CE42: -687.210251 | CF42: -143125.621 | CG42: -324919.98 | CH42: 0
A44: 34 | C44: Special Purpose Charge Assessment Variance Account4 | D44: 1521 | BG44: =BC44+BD44-BE44+SUM(BF44:BF44) -> 0 | BL44: =BH44+BI44-BJ44+BK44 -> 0 | BM44: =BG44 -> 0 | BT44: =BM44+BN44-BO44+SUM(BP44:BS44) -> 0 | BU44: =BL44 -> 0 | BY44: =BU44+BV44-BW44+BX44 -> 0 | CB44: =BT44-BZ44 -> 0 | CC44: =BY44-CA44 -> 0 | CD44: =CB44*1.47% -> 0 | CE44: =CC44*1.47% -> 0 | CF44: 0 | CH44: 0
C46: LRAM Variance Account | D46: 1568 | BG46: =BC46+BD46-BE46+SUM(BF46:BF46) -> 0 | BL46: =BH46+BI46-BJ46+BK46 -> 0 | BM46: =BG46 -> 0 | BT46: =BM46+BN46-BO46+SUM(BP46:BS46) -> 0 | BU46: =BL46 -> 0 | BY46: =BU46+BV46-BW46+BX46 -> 0 | CB46: =BT46-BZ46 -> 0 | CC46: =BY46-CA46 -> 0 | CD46: =CB46*1.47% -> 0 | CE46: =CC46*1.47% -> 0 | CF46: =SUM(CB46:CE46) -> 0 | CH46: =CG46-SUM(BT46,BY46) -> 0
C48: Total including Accounts 1562, 1521 and 1568 | E48: =E44+E42+E46 -> 0 | F48: =F44+F42+F46 -> 0 | G48: =G44+G42+G46 -> 0 | H48: 0 | I48: 0 | J48: 0 | K48: 0 | L48: 0 | M48: 0 | N48: 0 | O48: 0 | P48: 0 | Q48: 0 | R48: 0 | S48: 0 | T48: 0 | U48: 0 | V48: 0 | W48: 0 | X48: 0 | Y48: 0 | Z48: 0 | AA48: 0 | AB48: 0 | AC48: 0 | AD48: 0 | AE48: 0 | AF48: 0 | AG48: 0 | AH48: 0 | AI48: 0 | AJ48: 0 | AK48: 0 | AL48: 0 | AM48: 0 | AN48: 0 | AO48: 0 | AP48: 0 | AQ48: 0 | AR48: 0 | AS48: 0 | AT48: 0 | AU48: 0 | AV48: 0 | AW48: 0 | AX48: 0 | AY48: 0 | AZ48: 0 | BA48: 0 | BB48: 0 | BC48: 0 | BD48: 0 | BE48: 0 | BF48: -180760.71 | BG48: -180760.71 | BH48: 0 | BI48: 0 | BJ48: 0 | BK48: -1941.73 | BL48: -1941.73 | BM48: -180760.71 | BN48: -140246.99 | BO48: 0 | BP48: 0 | BQ48: 0 | BR48: 0 | BS48: =BS44+BS42+BS46 -> 0 | BT48: -321007.7 | BU48: -1941.73 | BV48: -1970.55 | BW48: 0 | BX48: 0 | BY48: -3912.28 | BZ48: -180760.71 | CA48: -3782.49 | CB48: -140246.99 | CC48: -129.79 | CD48: -2061.630753 | CE48: -687.210251 | CF48: -143125.621 | CG48: -324919.98 | CH48: 0
C51: For all Board-Approved dispositions, please ensure that the disposition amount has the same sign (e.g: debit balances are to have a positive figure and credit balance are to have a negative figure) as per the related Board decision.
B54: 1 | C54: Please provide explanations for the nature of the adjustments. If the adjustment relates to previously Board Approved disposed balances, please provide amounts for adjustments and include supporting documentations.
B55: 2 | C55: For RSVA accounts only, report the net variance to the account during the year. For all other accounts, record the transactions during the year.
B56: 3 | C56: If the LDC’s 2013 rate year begins January 1, 2013, the projected interest is recorded from January 1, 2012 to December 31, 2012 on the December 31, 2011 balance adjusted for the disposed balances approved by the Board in the 2012 rate decision. If the LDC’s 2013 rate year begins May 1, 2013 the projected interest is recorded from January 1, 2012 to April 30, 2013 on the December 31, 2011 balance adjusted for the disposed balances approved by the Board in the 2012 rate decision.
B57: 4 | C57: Applicants that did not have the balance in Account 1521 cleared by the Board in the 2012 rate proceedings are expected to file to dispose of Account 1521 in the 2013 rate proceedings. No Account 1521 balance is to be filed for clearance in the 2013 rate proceedings for those distributors that had account 1521 cleared by the Board in the 2012 rate proceedings. In accordance with section 8 of the Special Purpose Charge (“SPC”) Regulation, Ontario Regulation 66/10, distributors were required to apply to the Board no later than April 15, 2012 for an order authorizing the distributor to clear the balance in Account 1521. As per the Board’s April 23, 2010 letter, the Board stated that it expected that requests for disposition of the balance in Account 1521 were to be addressed as part of the proceedings to set rates for the 2012 rate year, except in cases where this approach would result in non-compliance with the timeline set out in section 8 of the SPC Regulation.
B58: 5 | C58: Include Account 1595 as part of Group 1 accounts (lines 31, 32 and 33) for review and disposition if the recovery (or refund) period has been completed. If the recovery (or refund) period has not been completed, do not include the respective balance in Account 1595 for disposition at this time.

Sheet 6. Billing Det. for Def-Var
A13: In the green shaded cells, enter the most recent Board Approved volumetric forecast. If there is a material difference between the latest Board-approved volumetric forecast and the most recent 12-month actual volumetric data, use the most recent 12-month actual data. Do not enter data for the MicroFit class.
E15: Billed kWh for Non-RPP Customers | F15: Estimated kW for Non-RPP Customers | G15: Distribution Revenue 1 | H15: 1590 Recovery Share Proportion* | I15: 1595 Recovery Share Proportion (2008) 2 | J15: 1595 Recovery Share Proportion (2009) 2 | K15: 1595 Recovery Share Proportion (2010) 2 | L15: 1568 LRAM Variance Account Class Allocation ($ amounts)
A16: Rate Class | B16: Unit | C16: Metered kWh | D16: Metered kW
A17: Embedded Distributor | B17: $/kW | C17: 74192250 | D17: 264787 | E17: 74192250 | F17: =IF(ISERROR(D17/C17*E17), 0, D17/C17*E17) -> 264787 | G17: 172340
B19: Total | C19: =SUM(C17:C17) -> 74192250 | D19: =SUM(D17:D17) -> 264787 | E19: 74192250 | F19: 264787 | G19: 172340 | H19: 0 | I19: 0 | J19: 0 | K19: 0 | L19: 0
K20: Balance as per Sheet 5 | L20: ='5. 2013 Continuity Schedule'!CF46 -> 0
K21: Variance | L21: =L19-L20 -> 0
A23: Threshold Test
A24: Total Claim (including Account 1521, 1562 and 1568) | B24: ='5. 2013 Continuity Schedule'!CF48 -> -143125.621
A25: Total Claim for Threshold Test (All Group 1 Accounts) | B25: ='5. 2013 Continuity Schedule'!CF35 -> -143125.621
A26: Threshold Test (Total claim per kWh) 3 | B26: =IF(ISERROR(B25/C19), 0, B25/C19) -> -0.001929118217 | D26: =IF(AND(B26>-0.001,B26<0.001),"Claim does not meet the threshold test. If data has been entered on Sheet 5 for Accounts 1521 and 1562, the model will only dispose of Accounts 1521 and 1562.","") -> 
A30: 1 For Account 1562, the allocation to customer classes should be performed on the basis of the test year distribution revenue allocation to customer classes found in the Applicant’s Cost of Service application that was most recently approved at the time of disposition of the 1562 account balances
A32: 2 Residual Account balance to be allocated to rate classes in proportion to the recovery share as established when rate riders were implemented.
A33: 3 The Threshold Test does not include the amount in 1521, 1562 nor 1568.

Sheet 6. hidden (hidden)
E1: Billed kWh for Non-RPP Customers | F1: Estimated kW for Non-RPP Customers | G1: Distribution Revenue 1 | H1: 1590 Recovery Share Proportion* | I1: 1595 Recovery Share Proportion (2008) 2 | J1: 1595 Recovery Share Proportion (2009) 2 | K1: 1595 Recovery Share Proportion (2010) 2 | L1: 1568 LRAM Variance Account Class Allocation
A2: Rate Class | B2: Unit | C2: Metered kWh | D2: Metered kW
A3: Embedded Distributor | B3: $/kW | C3: 74192250 | D3: 264787 | E3: 74192250 | G3: 172340 | H3: 0 | I3: 0 | J3: 0 | K3: 0 | L3: 0

Sheet 7. Allocating Def-Var Balances
A13: No input required. This workshseet allocates the deferral/variance account balances (Group 1, 1521, 1588 GA, 1562 and 1568) to the appropriate classes as per the EDDVAR Report dated July 31, 2009
A15: Allocation of Group 1 Accounts (including Accounts 1521, 1562, 1568)
C16: % of Total kWh | D16: % of Total non-RPP kWh | E16: % of Total Distribution Revenue | M16: 1595 (2008) | N16: 1595 (2009) | O16: 1595 (2010) | P16: 1521 | Q16: 1562 | R16: 1568
A17: Rate Class | F17: 1550 | G17: 1580 | H17: 1584 | I17: 1586 | J17: 1588* | K17: 1588 GA | L17: 1590
A19: Embedded Distributor | C19: =VLOOKUP(A19, '6. Billing Det. for Def-Var'!A17:D17, 3,0)/'6. Billing Det. for Def-Var'!C19 -> 1 | D19: =VLOOKUP(A19, '6. Billing Det. for Def-Var'!A17:E17, 5,0)/'6. Billing Det. for Def-Var'!E19 -> 1 | E19: =VLOOKUP(A19, '6. Billing Det. for Def-Var'!A17:G17, 7,0)/'6. Billing Det. for Def-Var'!G19 -> 1 | F19: =C19* '5. 2013 Continuity Schedule'!CF24 -> 0 | G19: =C19* '5. 2013 Continuity Schedule'!CF25 -> -87004.64529 | H19: =C19* '5. 2013 Continuity Schedule'!CF26 -> -25558.40285 | I19: =C19* '5. 2013 Continuity Schedule'!CF27 -> -23185.90575 | J19: =C19* '5. 2013 Continuity Schedule'!CF28 -> -46771.42948 | K19: =D19* '5. 2013 Continuity Schedule'!CF29 -> 39394.76238 | L19: ='6. Billing Det. for Def-Var'!H17* '5. 2013 Continuity Schedule'!CF30 -> 0 | M19: ='6. Billing Det. for Def-Var'!I17* '5. 2013 Continuity Schedule'!CF31 -> 0 | N19: ='6. Billing Det. for Def-Var'!J17* '5. 2013 Continuity Schedule'!CF32 -> 0 | O19: ='6. Billing Det. for Def-Var'!K17* '5. 2013 Continuity Schedule'!CF33 -> 0 | P19: =C19* '5. 2013 Continuity Schedule'!CF44 -> 0 | Q19: =E19* '5. 2013 Continuity Schedule'!CF40 -> 0 | R19: ='6. Billing Det. for Def-Var'!L17 -> 0
A21: Total | C21: =SUM(C19:C19) -> 1 | D21: =SUM(D19:D19) -> 1 | E21: =SUM(E19:E19) -> 1 | F21: =SUM(F19:F19) -> 0 | G21: =SUM(G19:G19) -> -87004.64529 | H21: =SUM(H19:H19) -> -25558.40285 | I21: =SUM(I19:I19) -> -23185.90575 | J21: =SUM(J19:J19) -> -46771.42948 | K21: =SUM(K19:K19) -> 39394.76238 | L21: =SUM(L19:L19) -> 0 | M21: =SUM(M19:M19) -> 0 | N21: =SUM(N19:N19) -> 0 | O21: =SUM(O19:O19) -> 0 | P21: =SUM(P19:P19) -> 0 | Q21: =SUM(Q19:Q19) -> 0 | R21: =SUM(R19:R19) -> 0
A24: * RSVA - Power (Excluding Global Adjustment)

Sheet 8. Calculation of Def-Var RR
A12: Input required at cell C15 only. This workshseet calculates rate riders related to the Deferral/Variance Account Disposition (if applicable) and associated rate riders for the global adjustment sub-account. Rate Riders will not be generated for the MicroFit class.
A15: Please indicate the Rate Rider Recovery Period (in years) | C15: 1
E17: Balance of Accounts Allocated by kWh/kW (RPP) or Distribution Revenue | F17: Deferral/Variance Account Rate Rider | G17: Allocation of Balance in Account 1588 Global Adjustment Sub-Account | H17: Billed kWh or Estimated kW for Non-RPP Customers | I17: Global Adjustment Rate Rider
A18: Rate Class | B18: Unit | C18: Billed kWh | D18: Billed kW or kVA
A20: Embedded Distributor | B20: $/kW | C20: 74192250 | D20: 264787 | E20: =SUM('7. Allocating Def-Var Balances'!F19:J19)+SUM('7. Allocating Def-Var Balances'!L19:R19) -> -182520.3834 | F20: -0.6893 | G20: 39394.76238 | H20: 264787 | I20: 0.1487790653
A21: Total | C21: =SUM(C20:C20) -> 74192250 | D21: =SUM(D20:D20) -> 264787 | E21: =SUM(E20:E20) -> -182520.3834 | G21: =SUM(G20:G20) -> 39394.76238 | H21: =SUM(H20:H20) -> 264787

Sheet 9. Rev2Cost_GDPIPI
Z1: 0
A12: If applicable, please enter any adjustments related to the revenue to cost ratio model into columns C and E. The Price Escalator has been set at the 2012 values and will be updated by Board staff. The Stretch Factor Value will also be updated by Board staff.
A15: Price Escalator | B15: 0.02 | C15: Choose Stretch Factor Group | E15: II
A16: Productivity Factor | B16: 0.0072 | C16: Associated Stretch Factor Value | E16: =IF(ISBLANK(E15)=TRUE, "", IF(E15="I", 0.002, IF(E15="II", 0.004, 0.006))) -> 0.004
A17: Price Cap Index | B17: =B15-B16-E16 -> 0.0088
B19: Current MFC | C19: MFC Adjustment from R/C Model | D19: Current Volumetric Charge | E19: DVR Adjustment from R/C Model | F19: Price Cap Index to be Applied to MFC and DVR | G19: Proposed MFC | H19: Proposed Volumetric Charge
A20: Rate Class
A22: Embedded Distributor | B22: 183.44 | D22: 0.5653 | F22: =$B$17 -> 0.0088 | G22: =ROUND(SUM(B22,C22)*(1+F22),2) -> 185.05 | H22: =ROUND(SUM(D22,E22)*(1+F22),4) -> 0.5703

Sheet 9. hidden (hidden)
A1: Rate Class | B1: MFC Adjustment from R/C Model | C1: DVR Adjustment from R/C Model
A2: Embedded Distributor | B2: 0 | C2: 0

Sheet 10. Other Charges & LF
A11: Please enter the following charges as found on your most recent Board-Approved Tariff Schedule. The standard Allowance rates have been included as default entries. If you have different rates, please make the appropriate corrections in the applicable cells below. As well, please enter the current Specific Service Charges below. The standard Retail Service Charges have been entered below. If you have different rates, please make the appropriate corrections in columns A, C or D as applicable (cells are unlocked).
C13: UNIT | D13: CURRENT
A15: ALLOWANCES
A17: Transformer Allowance for Ownership - per kW of billing demand/month | C17: $/kW | D17: -0.6
A20: Primary Metering Allowance for transformer losses – applied to measured demand and energy | C20: % | D20: -1
A22: SPECIFIC SERVICE CHARGES
A24: APPLICATION
A26: The application of these rates and charges shall be in accordance with the Licence of the Distributor and any Code or
A27: Order of the Board, and amendments thereto as approved by the Board, which may be applicable to the
A28: administration of this schedule
A30: No charges to meet the costs of any work or service done or furnished for the purpose of the distribution of electricity
A31: shall be made except as permitted by this schedule, unless required by the Distributor’s Licence or a Code or Order
A32: of the Board, and amendments thereto as approved by the Board, or as specified herein.
A34: It should be noted that this schedule does not list any charges, assessments, or credits that are required by law to be
A35: invoiced by a distributor and that are not subject to Board approval, such as the Debt Retirement Charge, charges for
A36: the Ministry of Energy Conservation and Renewable Energy Program, the Global Adjustment, the Ontario Clean
A37: Energy Benefit and the HST.
A39: Customer Administration
A77: Non-Payment of Account
A107: RETAIL SERVICE CHARGES (if applicable)
A109: The application of these rates and charges shall be in accordance with the Licence of the Distributor and any Code or
A110: Order of the Board, and amendments thereto as approved by the Board, which may be applicable to the
A111: administration of this schedule.
A113: No rates and charges for the distribution of electricity and charges to meet the costs of any work or service done or
A114: furnished for the purpose of the distribution of electricity shall be made except as permitted by this schedule, unless
A115: required by the Distributor’s Licence or a Code or Order of the Board, and amendments thereto as approved by the
A116: Board, or as specified herein.
A118: Unless specifically noted, this schedule does not contain any charges for the electricity commodity, be it under the
A119: Regulated Price Plan, a contract with a retailer or the wholesale market price, as applicable
A121: It should be noted that this schedule does not list any charges, assessments, or credits that are required by law to be
A122: invoiced by a distributor and that are not subject to Board approval, such as the Debt Retirement Charge, charges for
A123: the Ministry of Energy Conservation and Renewable Energy Program, the Global Adjustment, the Ontario Clean
A124: Energy Benefit and the HST.
A126: Retail Service Charges refer to services provided by a distributor to retailers or customers related
A127: to the supply of competitive electricity
A130: One-time charge, per retailer, to establish the service agreement between the distributor and the retailer | C130: $ | D130: 100
A131: Monthly Fixed Charge, per retailer | C131: $ | D131: 20
A132: Monthly Variable Charge, per customer, per retailer | C132: $/cust. | D132: 0.5
A133: Distributor-consolidated billing charge, per customer, per retailer | C133: $/cust. | D133: 0.3
A134: Retailer-consolidated billing credit, per customer, per retailer | C134: $/cust. | D134: -0.3
A135: Service Transaction Requests (STR)
A136: Request fee, per request, applied to the requesting party | C136: $ | D136: 0.25
A137: Processing fee, per request, applied to the requesting party | C137: $ | D137: 0.5
A138: Request for customer information as outlined in Section 10.6.3 and Chapter 11 of the Retail
A139: Settlement Code directly to retailers and customers, if not delivered electronically through the
A140: Electronic Business Transaction (EBT) system, applied to the requesting party
A141: Up to twice a year | C141: $ | D141: no charge
A142: More than twice a year, per request (plus incremental delivery costs) | C142: $ | D142: 2
A144: LOSS FACTORS
A146: If the distributor is not capable of prorating changed loss factors jointly with distribution rates, the revised loss factors
A147: will be implemented upon the first subsequent billing for each billing cycle.
A149: Total Loss Factor – Embedded Distributor – Hydro One Networks Inc. | D149: 1.0305 | H149: TLF_EmbeddedDistributor

Sheet 11. Proposed Rates
Y1: 0 | Z1: 3 | AA1: ≥
Z2: February
Z3: March
Z4: April
Z5: May
Z6: June
Z7: July
Z8: August
Z9: September
Z10: October
Z11: November
A12: Below is a listing of the proposed Monthly Fixed Charges, proposed Distribution Volumetric Rates, proposed Deferral and Variance account Rate Riders and all unexpired volumetric rates that were entered on Sheet 4. In the green cells (column A) below, please enter any additional rates being proposed (eg: LRAM/SSM, Tax Adjustments, etc). Please ensure that the word "Rider" or "Adder" is included in the description (as applicable). Note: All rates with expired effective dates have been removed. As well, the Current RTSR-Network and RTSR-Connection rate descriptions entered on Sheet 4 can be found below. The associated rates have been removed from this sheet, giving the applicant the opportunity to enter updated rates (from Sheet 13 in the Board-Approved RTSR model into the cells in column I. | Z12: December
A20: EMBEDDED DISTRIBUTOR SERVICE CLASSIFICATION
A21: MONTHLY RATES AND CHARGES - Delivery Component
A22: Service Charge | H22: $ | I22: 185.05 | K22: 1_P_MSC
A23: Distribution Volumetric Rate | H23: $/kW | I23: 0.5703 | K23: 1_P_VC
A24: Rate Rider for Deferral/Variance Account Disposition (2013) - effective until April 30, 2014 | H24: $/kW | I24: -0.6893 | K24: 1_P_VC_Rate_Rider_kW_1
A25: Rate Rider for Global Adjustment Sub-Account Disposition (2013) - effective until April 30, 2014 Applicable only for Non-RPP Customers | H25: $/kW | I25: 0.1488 | K25: 1_P_VC_GA_Rate_Rider_kW_1
A26: Retail Transmission Rate - Network Service Rate | H26: $/kW | I26: 2.1841 | K26: 1_P_RTSR_Network
A27: Retail Transmission Rate - Line and Transformation Connection Service Rate | H27: $/kW | I27: 2.2166 | K27: 1_P_RTSR_Connection
A48: MONTHLY RATES AND CHARGES - Regulatory Component
A49: Wholesale Market Service Rate | H49: $/kWh | I49: 0.0052 | K49: 1_P_WMSR
A50: Rural Rate Protection Charge | H50: $/kWh | I50: 0.0011 | K50: 1_P_RRPC
A51: Standard Supply Service - Administrative Charge (if applicable) | H51: $ | I51: 0.25 | K51: 1_P_SSS

Sheet 12. Summary Sheet
Y1: 3 | Z1: 3 | AA1: ≥
Z2: February
Z3: March
Z4: April
Z5: May
Z6: June
Z7: July
Z8: August
Z9: September
Z10: October
A11: The following table provides applicants with a class to class comparison of current vs. proposed rates. | Z11: November
Z12: December
A15: Current Rates | E15: Proposed Rates
A16: Rate Description | B16: Unit | C16: Amount | E16: Rate Description | F16: Unit | G16: Amount
A17: Embedded Distributor | E17: Embedded Distributor
A18: Service Charge | B18: $ | C18: 183.44 | E18: Service Charge | F18: $ | G18: 185.05
A19: Distribution Volumetric Rate | B19: $/kW | C19: 0.5653 | E19: Distribution Volumetric Rate | F19: $/kW | G19: 0.5703
A20: Rate Rider for Global Adjustment Sub-Account Disposition (2012) – Effective until April 30, 2013 Applicable only for Non-RPP Customers | B20: $/kW | C20: -0.3758 | E20: Rate Rider for Deferral/Variance Account Disposition (2013) - effective until April 30, 2014 | F20: $/kW | G20: -0.6893
A21: Rate Rider for Deferral/Variance Account Disposition (2012) – Effective until April 30, 2013 | B21: $/kW | C21: -0.2905 | E21: Rate Rider for Global Adjustment Sub-Account Disposition (2013) - effective until April 30, 2014 Applicable only for Non-RPP Customers | F21: $/kW | G21: 0.1488
A22: Retail Transmission Rate - Network Service Rate | B22: $/kW | C22: 2.1063 | E22: Retail Transmission Rate - Network Service Rate | F22: $/kW | G22: 2.1841
A23: Retail Transmission Rate - Line and Transformation Connection Service Rate | B23: $/kW | C23: 1.8422 | E23: Retail Transmission Rate - Line and Transformation Connection Service Rate | F23: $/kW | G23: 2.2166
A24: Wholesale Market Service Rate | B24: $/kWh | C24: 0.0052 | E24: Wholesale Market Service Rate | F24: $/kWh | G24: 0.0052
A25: Rural Rate Protection Charge - effective until April 30, 2012 | B25: $/kWh | C25: 0.0011 | E25: Rural Rate Protection Charge | F25: $/kWh | G25: 0.0011
A26: Rural Rate Protection Charge - effective on and after May 1, 2012 | B26: $/kWh | C26: 0.0011 | E26: Standard Supply Service - Administrative Charge (if applicable) | F26: $ | G26: 0.25
A27: Standard Supply Service - Administrative Charge (if applicable) | B27: $ | C27: 0.25

Sheet 13. Final Tariff Schedule
Y1: 3 | Z1: 3 | AA1: ≥
Z2: February
Z3: March
Z4: April
Z5: May
Z6: June
Z7: July
Z8: August
Z9: September
Z10: October
Z11: November
A12: The following is a complete Tariff Schedule based on the information entered in this model. Please review. Note: This worksheet is unlocked and the print margins, row heights, number formats, etc. can be adjusted. | Z12: December
A19: ='1. Information Sheet'!F14 -> Haldimand County Hydro Inc.
A20: TARIFF OF RATES AND CHARGES
A21: ="Effective and Implementation Date " & TEXT('1. Information Sheet'!F26, "mmmm dd, yyyy") -> Effective and Implementation Date May 01, 2013
A23: This schedule supersedes and replaces all previously
A24: approved schedules of Rates, Charges and Loss Factors
A25: ='1. Information Sheet'!F18 -> EB-2012-0129
A26: EMBEDDED DISTRIBUTOR SERVICE CLASSIFICATION
A28: This classification applies to Hydro One Networks Inc., an electricity distributor licensed by the Board, and provided electricity by means of Haldimand County Hydro Inc.'s distribution facilities. Further servicing details are available in the distributor’s Conditions of Service.
A30: APPLICATION
A32: The application of these rates and charges shall be in accordance with the Licence of the Distributor and any Code or Order of the Board, and amendments thereto as approved by the Board, which may be applicable to the administration of this schedule.
A34: No rates and charges for the distribution of electricity and charges to meet the costs of any work or service done or furnished for the purpose of the distribution of electricity shall be made except as permitted by this schedule, unless required by the Distributor’s Licence or a Code or Order of the Board, and amendments thereto as approved by the Board, or as specified herein.
A36: Unless specifically noted, this schedule does not contain any charges for the electricity commodity, be it under the Regulated Price Plan, a contract with a retailer or the wholesale market price, as applicable.
A38: It should be noted that this schedule does not list any charges, assessments or credits that are required by law to be invoiced by a distributor and that are not subject to Board approval, such as the Debt Retirement Charge, the Global Adjustment, the Ontario Clean Energy Benefit and the HST.
A40: MONTHLY RATES AND CHARGES - Delivery Component
A42: Service Charge | H42: $ | I42: 185.05
A43: Distribution Volumetric Rate | H43: $/kW | I43: 0.5703
A44: Rate Rider for Deferral/Variance Account Disposition (2013) - effective until April 30, 2014 | H44: $/kW | I44: -0.6893
A45: Rate Rider for Global Adjustment Sub-Account Disposition (2013) - effective until April 30, 2014
A46: Applicable only for Non-RPP Customers | H46: $/kW | I46: 0.1488
A47: Retail Transmission Rate - Network Service Rate | H47: $/kW | I47: 2.1841
A48: Retail Transmission Rate - Line and Transformation Connection Service Rate | H48: $/kW | I48: 2.2166
A50: MONTHLY RATES AND CHARGES - Regulatory Component
A52: Wholesale Market Service Rate | H52: $/kWh | I52: 0.0052
A53: Rural Rate Protection Charge | H53: $/kWh | I53: 0.0011
A54: Standard Supply Service - Administrative Charge (if applicable) | H54: $ | I54: 0.25
A57: ALLOWANCES
A59: Transformer Allowance for Ownership - per kW of billing demand/month | H59: $/kW | I59: -0.6
A60: Primary Metering Allowance for transformer losses – applied to measured demand and energy | H60: % | I60: -1
A62: SPECIFIC SERVICE CHARGES
A64: APPLICATION
A66: The application of these rates and charges shall be in accordance with the Licence of the Distributor and any Code or
A67: Order of the Board, and amendments thereto as approved by the Board, which may be applicable to the
A68: administration of this schedule
A70: No charges to meet the costs of any work or service done or furnished for the purpose of the distribution of electricity
A71: shall be made except as permitted by this schedule, unless required by the Distributor’s Licence or a Code or Order
A72: of the Board, and amendments thereto as approved by the Board, or as specified herein.
A74: It should be noted that this schedule does not list any charges, assessments, or credits that are required by law to be
A75: invoiced by a distributor and that are not subject to Board approval, such as the Debt Retirement Charge, charges for
A76: the Ministry of Energy Conservation and Renewable Energy Program, the Global Adjustment, the Ontario Clean
A77: Energy Benefit and the HST.
A79: Customer Administration
A83: Non-Payment of Account
A86: RETAIL SERVICE CHARGES (if applicable)
A88: The application of these rates and charges shall be in accordance with the Licence of the Distributor and any Code or
A89: Order of the Board, and amendments thereto as approved by the Board, which may be applicable to the
A90: administration of this schedule.
A92: No rates and charges for the distribution of electricity and charges to meet the costs of any work or service done or
A93: furnished for the purpose of the distribution of electricity shall be made except as permitted by this schedule, unless
A94: required by the Distributor’s Licence or a Code or Order of the Board, and amendments thereto as approved by the
A95: Board, or as specified herein.
A97: Unless specifically noted, this schedule does not contain any charges for the electricity commodity, be it under the
A98: Regulated Price Plan, a contract with a retailer or the wholesale market price, as applicable
A100: It should be noted that this schedule does not list any charges, assessments, or credits that are required by law to be
A101: invoiced by a distributor and that are not subject to Board approval, such as the Debt Retirement Charge, charges for
A102: the Ministry of Energy Conservation and Renewable Energy Program, the Global Adjustment, the Ontario Clean
A103: Energy Benefit and the HST.
A105: Retail Service Charges refer to services provided by a distributor to retailers or customers related
A106: to the supply of competitive electricity
A109: One-time charge, per retailer, to establish the service agreement between the distributor and the retailer | H109: $ | I109: 100
A110: Monthly Fixed Charge, per retailer | H110: $ | I110: 20
A111: Monthly Variable Charge, per customer, per retailer | H111: $/cust. | I111: 0.5
A112: Distributor-consolidated billing charge, per customer, per retailer | H112: $/cust. | I112: 0.3
A113: Retailer-consolidated billing credit, per customer, per retailer | H113: $/cust. | I113: -0.3
A114: Service Transaction Requests (STR)
A115: Request fee, per request, applied to the requesting party | H115: $ | I115: 0.25
A116: Processing fee, per request, applied to the requesting party | H116: $ | I116: 0.5
A117: Request for customer information as outlined in Section 10.6.3 and Chapter 11 of the Retail
A118: Settlement Code directly to retailers and customers, if not delivered electronically through the
A119: Electronic Business Transaction (EBT) system, applied to the requesting party
A120: Up to twice a year | H120: $ | I120: no charge
A121: More than twice a year, per request (plus incremental delivery costs) | H121: $ | I121: 2
A123: LOSS FACTORS
A125: If the distributor is not capable of prorating changed loss factors jointly with distribution rates, the revised loss factors
A126: will be implemented upon the first subsequent billing for each billing cycle.
A128: Total Loss Factor – Embedded Distributor – Hydro One Networks Inc. | I128: 1.0305

Sheet 14. Bill Impacts
Z1: =MATCH(A13, '3. Rate Class Selection'!B19:B40,0) -> 1 | AA1: =VLOOKUP(A13, lists!AO:AP,2,0) -> kW
A11: Choose a Rate Class from the drop-down menu below and click UPDATE. For Street Lighting and USL classes, please ensure that the number of customers is manually entered into cells B30 and B31. Click the UPDATE button to refresh the sheet.
A13: Embedded Distributor | F13: =IF(ISERROR(SEARCH("MicroFit",A13,1))=FALSE,"Bill impact presentation for this class does not exist.", "") -> 
A15: Consumption | B15: 800 | C15: kWh | E15: =IF(AA1 = "kWh", "", "kW") -> kW
A16: RPP Tier One | B16: 600 | C16: kWh
A17: Load Factor
A18: Loss Factor | B18: 0
B21: CURRENT ESTIMATED BILL | E21: PROPOSED ESTIMATED BILL
B22: Volume | C22: Current Rate ($) | D22: Current Charge ($) | E22: Volume | F22: Proposed Rate ($) | G22: Proposed Charge ($) | I22: Change ($) | J22: Change (%) | K22: % of Total RPP Bill | L22: % of Total TOU Bill
A23: Energy First Tier (kWh) | B23: 600 | C23: 0.075 | D23: =B23*C23 -> 45 | E23: =B23 -> 600 | F23: =C23 -> 0.075 | G23: =E23*F23 -> 45 | I23: =G23-D23 -> 0 | J23: =I23/D23 -> 0 | K23: =G23/#REF! -> 
A24: Energy Second Tier (kWh) | B24: 200 | C24: 0.088 | D24: =B24*C24 -> 17.6 | E24: =B24 -> 200 | F24: =C24 -> 0.088 | G24: =E24*F24 -> 17.6 | I24: =G24-D24 -> 0 | J24: =I24/D24 -> 0 | K24: =G24/#REF! -> 
A26: TOU - Off Peak | B26: =0.64*$B$15*$B$18 -> 0 | C26: 0.065 | D26: =C26*B26 -> 0 | E26: =B26 -> 0 | F26: =C26 -> 0.065 | G26: =F26*E26 -> 0 | I26: =G26-D26 -> 0 | J26: =I26/D26 ->  | L26: =G26/#REF! -> 
A27: TOU - Mid Peak | B27: =0.18*$B$15*$B$18 -> 0 | C27: 0.1 | D27: =C27*B27 -> 0 | E27: =B27 -> 0 | F27: =C27 -> 0.1 | G27: =F27*E27 -> 0 | H27: 0 | I27: =G27-D27 -> 0 | J27: =I27/D27 ->  | L27: =G27/#REF! -> 
A28: TOU - On Peak | B28: =0.18*$B$15*$B$18 -> 0 | C28: 0.117 | D28: 0 | E28: 0 | F28: 0.117 | G28: =F28*E28 -> 0 | H28: 0 | I28: 0 | J28: =I28/D28 ->  | L28: =G28/#REF! -> 
A30: Service Charge | B30: 1 | D30: 0 | E30: =B30 -> 1 | G30: =F30*E30 -> 0 | H30: 0 | I30: 0 | J30: =I30/D30 ->  | L30: =G30/#REF! -> 
A31: Service Charge Rate Rider(s) | B31: 1 | C31: 0 | D31: 0 | E31: =B31 -> 1 | F31: 0 | G31: =F31*E31 -> 0 | H31: =G31*F31 -> 0 | I31: 0 | J31: =I31/D31 ->  | L31: =G31/#REF! -> 
A32: Distribution Volumetric Rate | B32: 800 | D32: 0 | E32: =B32 -> 800 | G32: 0 | H32: 0 | I32: 0 | J32: =I32/D32 ->  | L32: =G32/#REF! -> 
A33: Low Voltage Volumetric Rate | B33: 800 | D33: 0 | E33: =B33 -> 800 | G33: 0 | H33: 0 | I33: 0 | J33: 0 | L33: 0
A34: Distribution Volumetric Rate Rider(s) | B34: 800 | C34: 0 | D34: 0 | E34: 800 | F34: 0 | G34: 0 | H34: 0 | I34: 0 | J34: =I34/D34 ->  | L34: =G34/#REF! -> 
A35: Total: Distribution | D35: =ROUND(SUM(D30:D34),2) -> 0 | G35: =ROUND(SUM(G30:G34),2) -> 0 | I35: =G35-D35 -> 0 | K35: =G35/#REF! ->  | L35: =G35/#REF! -> 
A36: Total: Retail Transmission
A37: Sub-Total: Delivery (Distribution and Retail Transmission) | D37: =SUM(D36,D35) -> 0 | G37: =SUM(G36,G35) -> 0 | I37: =G37 - D37 -> 0 | J37: =I37 /D37 -> 
A38: Wholesale Market Service Rate | B38: 800 | D38: =B38*C38 -> 0 | E38: =B38 -> 800 | F38: 0 | G38: =E38*F38 -> 0 | I38: =G38-D38 -> 0 | J38: =I38/D38 -> 
A39: Rural Rate Protection Charge | B39: 800 | D39: =B39*C39 -> 0 | E39: 800 | F39: 0 | G39: =E39*F39 -> 0 | I39: =G39-D39 -> 0 | J39: =I39/D39 -> 
A40: Standard Supply Service – Administration Charge (if applicable) | B40: 1 | D40: 0 | E40: 1 | F40: 0 | G40: =E40*F40 -> 0 | I40: 0
A41: Sub-Total: Regulatory | D41: =SUM(D38:D40) -> 0 | G41: =SUM(G38:H40) -> 0 | I41: =G41-D41 -> 0
A42: Debt Retirement Charge (DRC) | B42: 800 | D42: 0 | E42: =B42 -> 800 | F42: =C42 -> 0 | G42: =E42*F42 -> 0 | I42: 0
A44: Total Bill on RPP (before taxes) | I44: =G44-D44 -> 0
A45: HST | C45: 0.13 | D45: =C45*D44 -> 0 | F45: =C45 -> 0.13 | G45: =F45*G44 -> 0 | I45: =G45-D45 -> 0 | J45: =I45/D45 -> 
A46: Total Bill (including HST) | D46: =D45+D44 -> 0 | G46: =G45+G44 -> 0 | I46: =G46-D46 -> 0 | J46: =I46/D46 -> 
A47: Ontario Clean Energy Benefit (OCEB) | C47: -0.1 | D47: =-0.1*D46 -> 0 | F47: =C47 -> -0.1 | G47: =-0.1*G46 -> 0 | I47: =G47-D47 -> 0 | J47: =I47/D47 -> 
A48: Total Bill on RPP (including OCEB) | D48: =D46+D47 -> 0 | G48: =G46+G47 -> 0 | I48: =G48-D48 -> 0 | J48: =I48/D48 -> 
A50: Total Bill on TOU (before taxes) | I50: =G50-D50 -> 0
A51: HST | C51: 0.13 | D51: =C51*D50 -> 0 | F51: =C51 -> 0.13 | G51: =F51*G50 -> 0 | I51: =G51-D51 -> 0 | J51: =I51/D51 -> 
A52: Total Bill (including HST) | D52: =D51+D50 -> 0 | G52: =G51+G50 -> 0 | I52: =G52-D52 -> 0 | J52: =I52/D52 -> 
A53: Ontario Clean Energy Benefit (OCEB) | C53: -0.1 | D53: =-0.1*D52 -> 0 | F53: =C53 -> -0.1 | G53: =-0.1*G52 -> 0 | I53: =G53-D53 -> 0 | J53: =I53/D53 -> 
A54: Total Bill on TOU (including OCEB) | D54: =D52+D53 -> 0 | G54: =G52+G53 -> 0 | I54: =G54-D54 -> 0 | J54: =I54/D54 -> 

Sheet lists (hidden)
A1: Residential | B1: Embedded Distributor | C1: =COUNTA(B1:B17) -> 4 | I1: Distribution Volumetric Rate | L1: Loss Factors | N1: Units | O1: Units1 | P1: Units2 | Z1: Account History | AA1: Account set up charge/change of occupancy charge (plus credit agency costs if applicable) | AB1: Total Loss Factor – Embedded Distributor – Hydro One Networks Inc. | AM1: Algoma Power Inc. | AO1: Embedded Distributor | AP1: kW | AT1: Sub-Total: Delivery (Distribution and Retail Transmission)
A2: Residential - Time of Use | B2: General Service 3,000 to 4,999 kW | I2: GEA Rate Rider - Effective Until December 31, 2012 | L2: Total Loss Factor – Primary Metered Customer | N2: $ | O2: $/kWh | P2: $ | Z2: Account set up charge/change of occupancy charge | AA2: Administrative Billing Charge | AB2: Total Loss Factor – Primary Metered Customer | AM2: Atikokan Hydro Inc. | AO2: Farms – Single Phase energy-billed [F1] | AP2: kWh | AT2: Wholesale Market Service Rate | AW2: =AU2*AV2 -> 0 | AX2: =AU2 -> 0 | AY2: 0 | AZ2: =AX2*AY2 -> 0 | BB2: =AZ2-AW2 -> 0 | BC2: =BB2/AW2 -> 
A3: Residential Regular | B3: General Service 1,000 to 4,999 kW | I3: Green Energy Act Initiatives Funding Adder | L3: Total Loss Factor – Primary Metered Customer < 5,000 kW | N3: $/kWh | O3: $/kW | P3: % | W3: MSC | Z3: Account set up charge/change of occupancy charge (plus credit agency costs if applicable – Residential) | AA3: Bell Canada Pole Rentals | AB3: Total Loss Factor – Primary Metered Customer < 5,000 kW | AM3: Attawapiskat Power Corporation | AO3: Farms – Three Phase energy-billed [F3] | AP3: kWh | AT3: Rural Rate Protection Charge | AW3: =AU3*AV3 -> 0 | AX3: 0 | AY3: 0 | AZ3: =AX3*AY3 -> 0 | BB3: =AZ3-AW3 -> 0 | BC3: =BB3/AW3 -> 
A4: Residential Urban | B4: General Service Equal To Or Greater Than 1,500 kW - Interval Metered | I4: Green Energy Act Plan Funding Adder – Effective until March 31, 2013 | L4: Total Loss Factor – Primary Metered Customer > 5,000 kW | N4: $/kW | O4: $/kVA | W4: SM_Rate_Adder | Z4: Account set up charge/change of occupancy charge (plus credit agency costs if applicable) | AA4: Clearance Pole Attachment charge $/pole/year | AB4: Total Loss Factor – Primary Metered Customer > 5,000 kW | AM4: Bluewater Power Distribution Corp. | AO4: General Service 50 to 2,499 kW | AP4: kW | AT4: Standard Supply Service – Administration Charge (if applicable) | AW4: 0 | AX4: 0 | AY4: 0 | AZ4: =AX4*AY4 -> 0 | BB4: 0
A5: General Service Less Than 50 kW | I5: Low Voltage Service Charge | L5: Total Loss Factor – Secondary Metered Customer | N5: $/kVA | W5: MSC_Rate_Rider_ | Z5: Arrears certificate | AA5: Collection of account charge – no disconnection | AB5: Total Loss Factor – Secondary Metered Customer | AM5: Brant County Power | AO5: General Service - Commercial | AP5: kW | AT5: Sub-Total: Regulatory | AW5: =SUM(AW2:AW4) -> 0 | AZ5: =SUM(AZ2:BA4) -> 0 | BB5: =AZ5-AW5 -> 0
A6: General Service Less Than 50 kW – Single Phase energy-billed [G1] | I6: Low Voltage Service Rate | L6: Total Loss Factor – Secondary Metered Customer < 5,000 kW | W6: VC | Z6: Arrears certificate (credit reference) | AA6: Collection of account charge – no disconnection – after regular hours | AB6: Total Loss Factor – Secondary Metered Customer < 5,000 kW | AM6: Brantford Power Inc. | AO6: General Service - Institutional | AP6: kW | AT6: Debt Retirement Charge (DRC) | AW6: 0 | AX6: =AU6 -> 0 | AY6: =AV6 -> 0 | AZ6: =AX6*AY6 -> 0 | BB6: 0
I7: Low Voltage Volumetric Rate
A8: General Service Less Than 50 kW – Three Phase energy-billed [G3] | L8: Total Loss Factor – Secondary Metered Customer > 5,000 kW | W8: VC_Rate_Rider_ | Z8: Charge to certify cheque | AA8: Collection of account charge – no disconnection - during regular business hours | AB8: Total Loss Factor – Secondary Metered Customer > 5,000 kW | AM8: Burlington Hydro Inc. | AO8: General Service 1,000 to 2,999 kW | AP8: kW | AT8: Total Bill on RPP (before taxes) | BB8: =AZ8-AW8 -> 0
A9: General Service Less Than 50 kW – Transmission Class energy-billed [T] | I9: Minimum Distribution Charge – per KW of maximum billing demand in the previous 11 months | L9: Distribution Loss Factor - Secondary Metered Customer < 5,000 kW | W9: VC_GA_Rate_Rider_kW_ | Z9: Collection of Account Charge – No Disconnection | AA9: Collection of account charge – no disconnection – during regular hours | AM9: Cambridge and North Dumfries Hydro | AO9: General Service 1,000 to 4,999 kW | AP9: kW | AT9: HST | AW9: =AV9*AW8 -> 0 | AY9: =AV9 -> 0 | AZ9: =AY9*AZ8 -> 0 | BB9: =AZ9-AW9 -> 0 | BC9: =BB9/AW9 -> 
A10: General Service Less Than 50 kW – Urban energy-billed [UG] | I10: Monthly Distribution Wheeling Service Rate – Dedicated LV Line | L10: Distribution Loss Factor - Secondary Metered Customer > 5,000 kW | W10: VC_LV_Rate | Z10: Credit Card Convenience Charge | AA10: Collection/Disconnection/Load Limiter/Reconnection – if in Community | AM10: Canadian Niagara Power Inc. – Eastern Ontario Power/Fort Erie/Port Colborne | AO10: General Service 1,000 to 4,999 kW - Interval Meters | AP10: kW | AT10: Total Bill (including HST) | AW10: =AW9+AW8 -> 0 | AZ10: =AZ9+AZ8 -> 0 | BB10: =AZ10-AW10 -> 0 | BC10: =BB10/AW10 -> 
A11: General Service 50 to 2,499 kW | I11: Monthly Distribution Wheeling Service Rate – Hydro One Networks | L11: Distribution Loss Factor - Primary Metered Customer < 5,000 kW | W11: RTSR_Network | Z11: Credit check (plus credit agency costs) | AA11: Credit Card Convenience Charge | AM11: Centre Wellington Hydro Ltd. | AO11: General Service 1,000 To 4,999 kW (co-generation) | AP11: kW | AT11: Ontario Clean Energy Benefit (OCEB) | AW11: =-0.1*AW10 -> 0 | AY11: =AV11 -> 0 | AZ11: =-0.1*AZ10 -> 0 | BB11: =AZ11-AW11 -> 0 | BC11: =BB11/AW11 -> 
A12: General Service - Commercial | I12: Monthly Distribution Wheeling Service Rate – Shared LV Line | L12: Distribution Loss Factor - Primary Metered Customer > 5,000 kW | W12: RTSR_Connection | Z12: Credit reference Letter | AA12: Disconnect/Reconnect at meter – after regular hours | AM12: Chapleau Public Utilities Corporation | AO12: General Service 1,500 to 4,999 kW | AP12: kW | AT12: Total Bill on RPP (including OCEB) | AW12: =AW10+AW11 -> 0 | AZ12: =AZ10+AZ11 -> 0 | BB12: =AZ12-AW12 -> 0 | BC12: =BB12/AW12 -> 
I13: Monthly Distribution Wheeling Service Rate – Waterloo North Hydro
A14: General Service - Institutional | L14: Total Loss Factor - Embedded Distributor | W14: RTSR_Network_Interval | Z14: Credit reference/credit check (plus credit agency costs – General Service) | AA14: Disconnect/Reconnect at meter – during regular hours | AM14: COLLUS Power Corp. | AO14: General Service 2,500 to 4,999 kW | AP14: kW | AT14: Total Bill on TOU (before taxes) | BB14: =AZ14-AW14 -> 0
A15: General Service 1,000 to 2,999 kW | I15: Rate Rider for Capital Gain | L15: Total Loss Factor – Embedded Distributor – Hydro One Networks Inc. | W15: RTSR_Connection_Interval | Z15: Credit Reference/credit check (plus credit agency costs) | AA15: Disconnect/Reconnect at pole – after regular hours | AM15: Cooperative Hydro Embrun Inc. | AO15: General Service 3,000 to 4,999 kW | AP15: kW | AT15: HST | AW15: =AV15*AW14 -> 0 | AY15: =AV15 -> 0 | AZ15: =AY15*AZ14 -> 0 | BB15: =AZ15-AW15 -> 0 | BC15: =BB15/AW15 -> 
A16: General Service 1,000 to 4,999 kW | I16: Rate Rider for Capital Gain – Effective until April 30, 2014 | W16: RTSR_Network_Interval_GR1000kW | Z16: Dispute Test – Commercial self contained -- MC | AA16: Disconnect/Reconnect at pole – during regular hours | AM16: E.L.K. Energy Inc. | AO16: General Service 3,000 to 4,999 kW - Intermediate Use | AP16: kW | AT16: Total Bill (including HST) | AW16: =AW15+AW14 -> 0 | AZ16: =AZ15+AZ14 -> 0 | BB16: =AZ16-AW16 -> 0 | BC16: =BB16/AW16 -> 
A17: General Service 1,000 to 4,999 kW - Interval Meters | I17: Rate Rider for Deferral/Variance Account Disposition | W17: RTSR_Connection_Interval_GR1000kW | Z17: Dispute Test – Commercial TT -- MC | AA17: Disconnect/Reconnect Charge – At Meter – After Hours | AM17: Enersource Hydro Mississauga Inc. | AO17: General Service 3,000 to 4,999 kW - Interval Metered | AP17: kW | AT17: Ontario Clean Energy Benefit (OCEB) | AW17: =-0.1*AW16 -> 0 | AY17: =AV17 -> 0 | AZ17: =-0.1*AZ16 -> 0 | BB17: =AZ17-AW17 -> 0 | BC17: =BB17/AW17 -> 
A18: General Service 1,000 To 4,999 kW (co-generation) | I18: Rate Rider for Deferral/Variance Account Disposition (2009) | W18: RTSR_Line_Connection | Z18: Dispute Test – Residential | AA18: Disconnect/Reconnect Charge – At Meter – During Regular Hours | AM18: Entegrus Powerlines Inc. | AO18: General Service 3,000 to 4,999 kW - Time of Use | AP18: kW | AT18: Total Bill on TOU (including OCEB) | AW18: =AW16+AW17 -> 0 | AZ18: =AZ16+AZ17 -> 0 | BB18: =AZ18-AW18 -> 0 | BC18: =BB18/AW18 -> 
A19: General Service 1,500 to 4,999 kW | I19: Rate Rider for Deferral/Variance Account Disposition (2010) | W19: RTSR_Transformer_Connection | Z19: Duplicate Invoices for previous billing | AA19: Disconnect/Reconnect Charge – At Pole – After Hours | AM19: ENWIN Utilities Ltd. | AO19: General Service 50 to 1,000 kW | AP19: kW
A20: General Service 2,500 to 4,999 kW | I20: Rate Rider for Deferral/Variance Account Disposition (2010) – Applicable only for Wholesale Market Participants | W20: WMSR | Z20: Easement Letter | AA20: Disconnect/Reconnect Charge – At Pole – During Regular Hours | AM20: Erie Thames Powerlines Corp. | AO20: General Service 50 to 1,000 kW - Interval Meters | AP20: kW
A21: General Service 3,000 to 4,999 kW | I21: Rate Rider for Deferral/Variance Account Disposition (2010) – Effective until April 30, 2012 | W21: RRRP | Z21: Income Tax Letter | AA21: Disconnect/Reconnect Charges for non payment of account - At Meter After Hours | AM21: Espanola Regional Hydro Distribution Corporation | AO21: General Service 50 to 1,000 kW - Non Interval Meters | AP21: kW
A22: General Service 3,000 to 4,999 kW - Intermediate Use | I22: Rate Rider for Deferral/Variance Account Disposition (2010) – Effective until April 30, 2014 | W22: SPC | Z22: Interval Meter Interrogation | AA22: Disconnect/Reconnect charges for non payment of account – at meter after regular hours | AM22: Essex Powerlines Corporation | AO22: General Service 50 to 1,499 kW | AP22: kW
A23: General Service 3,000 to 4,999 kW - Interval Metered | I23: Rate Rider for Deferral/Variance Account Disposition (2010) – Effective until December 31, 2014 | W23: DRC | Z23: Interval meter request change | AA23: Disconnect/Reconnect Charges for non payment of account - At Meter During Regular Hours | AM23: Festival Hydro Inc. | AO23: General Service 50 to 1,499 kW - Interval Metered | AP23: kW
A24: General Service 3,000 to 4,999 kW - Time of Use | I24: Rate Rider for Deferral/Variance Account Disposition (2011) | W24: SSS | Z24: Legal letter | AA24: Disconnect/Reconnect charges for non payment of account – at meter during regular hours | AM24: Fort Albany Power Corporation | AO24: General Service 50 to 2,999 kW | AP24: kW
A25: General Service 50 to 1,000 kW | I25: Rate Rider for Deferral/Variance Account Disposition (2011) – Applicable only for Wholesale Market Participants | W25: SFLF | Z25: Legal letter charge | AA25: Disconnect/Reconnect charges for non payment of account – at pole after regular hours | AM25: Fort Frances Power Corporation | AO25: General Service 50 to 2,999 kW - Interval Metered | AP25: kW
A26: General Service 50 to 1,000 kW - Interval Meters | B26: January | I26: Rate Rider for Deferral/Variance Account Disposition (2011) – Effective until April 30, 2014 | W26: DLF_Secondary_LT_5000kW | Z26: Meter dispute charge plus Measurement Canada fees (if meter found correct) | AA26: Disconnect/Reconnect charges for non payment of account – at pole during regular hours | AM26: Greater Sudbury Hydro Inc. | AO26: General Service 50 to 2,999 kW - Time of Use | AP26: kW
A27: General Service 50 to 1,000 kW - Non Interval Meters | B27: February | I27: Rate Rider for Deferral/Variance Account Disposition (2012) – Effective until December 31, 2012 | W27: DLF_Secondary_GT_5000kW | Z27: Notification charge | AA27: Disconnect/Reconnection for >300 volts - after regular hours | AM27: Grimsby Power Inc. | AO27: General Service 50 to 4,999 kW | AP27: kW
A28: General Service 50 to 1,499 kW | B28: March | I28: Rate Rider for Deferral/Variance Account Disposition (2012) – Effective until March 31, 2013 | W28: DLF_Primary_LT_5000kW | Z28: Pulling Post Dated Cheques | AA28: Disconnect/Reconnection for >300 volts - during regular hours | AM28: Guelph Hydro Electric Systems Inc. | AO28: General Service 50 to 4,999 kW – Interval Metered | AP28: kW
A29: General Service 50 to 1,499 kW - Interval Metered | B29: April | I29: Rate Rider for Deferral/Variance Account Disposition (2012) – Effective until April 30, 2013 | W29: DLF_Primary_GT_5000kW | Z29: Request for other billing information | AA29: Disposal of Concrete Poles | AM29: Haldimand County Hydro Inc. | AO29: General Service 50 to 4,999 kW - Time of Use | AP29: kW
A30: General Service 50 to 2,999 kW | B30: May | I30: Rate Rider for Deferral/Variance Account Disposition (2012) – Effective until April 30, 2014 | W30: TLF_Secondary_LT_5000kW | Z30: Returned cheque (plus bank charges) | AA30: Dispute Test – Commercial TT -- MC | AM30: Halton Hills Hydro Inc. | AO30: General Service 50 to 4,999 kW (CoGeneration) | AP30: kW
A31: General Service 50 to 2,999 kW - Interval Metered | B31: June | I31: Rate Rider for Deferral/Variance Account Disposition (2012) – Effective until December 31, 2013 | W31: TLF_Secondary_GT_5000kW | Z31: Returned cheque charge (plus bank charges) | AA31: Install/Remove load control device – after regular hours | AM31: Hearst Power Distribution Co. Ltd. | AO31: General Service 50 to 4,999 kW (formerly Time of Use) | AP31: kW
A32: General Service 50 to 2,999 kW - Time of Use | B32: July | I32: Rate Rider for Disposition of Post Retirement Actuarial Gain – Effective until March 31, 2025 | W32: TLF_Primary_LT_5000kW | Z32: Special Billing Service (aggregation) | AA32: Install/Remove load control device – during regular hours | AM32: Horizon Utilities Corporation | AO32: General Service 50 to 499 kW | AP32: kW
A33: General Service 50 to 4,999 kW | B33: August | I33: Rate Rider for Disposition of PILs Deferral/Variance Account – Effective until March 31, 2016 | W33: TLF_Primary_GT_5000kW | Z33: Special Billing Service (sub-metering charge per meter) | AA33: Interval Meter Interrogation | AM33: Hydro 2000 Inc. | AO33: General Service 50 to 699 kW | AP33: kW
A34: General Service 50 to 4,999 kW – Interval Metered | B34: September | I34: Rate Rider for Foregone Incremental Revenue | W34: TLF_EmbeddedDistributor | Z34: Special meter reads | AA34: Interval Meter Load Management Tool Charge $/month | AM34: Hydro Hawkesbury Inc. | AO34: General Service 50 to 999 kW | AP34: kW
A35: General Service 50 to 4,999 kW - Time of Use | B35: October | I35: Rate Rider for Foregone Incremental Revenue for Low Voltage Service | Z35: Statement of Account | AA35: Interval meter request change | AM35: Hydro One Brampton Networks Inc. | AO35: General Service 50 to 999 kW - Interval Metered | AP35: kW
A36: General Service 50 to 4,999 kW (CoGeneration) | B36: November | I36: Rate Rider for Foregone Revenue Recovery | Z36: Unprocessed Payment Charge (plus bank charges) | AA36: Late Payment – per annum | AM36: Hydro One Networks Inc. | AO36: General Service 500 to 4,999 kW | AP36: kW
A37: General Service 50 to 4,999 kW (formerly Time of Use) | B37: December | I37: Rate Rider for Foregone Revenue Recovery (2012) - Effective Until December 31, 2012 | AA37: Late Payment – per month | AM37: Hydro One Remote Communities Inc. | AO37: General Service 700 to 4,999 kW | AP37: kW
A38: General Service 50 to 499 kW | I38: Rate Rider for Recovery of Foregone Revenue – Effective until December 31, 2012 | AA38: Layout fees | AM38: Hydro Ottawa Limited | AO38: General Service Equal To Or Greater Than 1,500 kW | AP38: kW
A39: General Service 50 to 699 kW | I39: Rate Rider for Global Adjustment Sub-Account (2010) – Applicable only for Non-RPP Customers | AA39: Meter dispute charge plus Measurement Canada fees (if meter found correct) | AM39: Innisfil Hydro Dist. Systems Limited | AO39: General Service Equal To Or Greater Than 1,500 kW - Interval Metered | AP39: kW
A40: General Service 50 to 999 kW | I40: Rate Rider for Global Adjustment Sub-Account (2010) – Applicable only for Non-RPP Customers – Effective until April 30, 2012 | AA40: Meter Interrogation Charge | AM40: Kashechewan Power Corporation | AO40: General Service Greater Than 1,000 kW | AP40: kW
A41: General Service 50 to 999 kW - Interval Metered | I41: Rate Rider for Global Adjustment Sub-Account (2011) – Applicable only for Non-RPP Customers | AA41: Missed Service Appointment | AM41: Kenora Hydro Electric Corporation Ltd. | AO41: General Service Intermediate 1,000 To 4,999 kW | AP41: kW
A42: General Service 500 to 4,999 kW | I42: Rate Rider for Global Adjustment Sub-Account (2012) – Applicable only for Non-RPP Customers – Effective until December 31, 2013 | AA42: Norfolk Pole Rentals – Billed | AM42: Kingston Hydro Corporation | AO42: General Service Intermediate Rate Class 1,000 To 4,999 kW (formerly General Service > 50 kW Customers) | AP42: kW
A43: General Service 700 to 4,999 kW | I43: Rate Rider for Global Adjustment Sub-Account Disposition – Applicable only for Non-RPP Customers | AA43: Optional Interval/TOU Meter charge $/month | AM43: Kitchener-Wilmot Hydro Inc. | AO43: General Service Intermediate Rate Class 1,000 To 4,999 kW (formerly Large Use Customers) | AP43: kW
A44: General Service Equal To Or Greater Than 1,500 kW | I44: Rate Rider for Global Adjustment Sub-Account Disposition (2010 credit) – Applicable only for Non-RPP Customers | AA44: Overtime Locate | AM44: Lakefront Utilities Inc. | AO44: General Service Less Than 50 kW | AP44: kWh
A45: General Service Equal To Or Greater Than 1,500 kW - Interval Metered | I45: Rate Rider for Global Adjustment Sub-Account Disposition (2010 recalculated) – Applicable only for Non-RPP Customers | AA45: Owner Requested Disconnection/Reconnection – after regular hours | AM45: Lakeland Power Distribution Ltd. | AO45: General Service Less Than 50 kW – Single Phase energy-billed [G1] | AP45: kWh
A46: General Service Greater Than 1,000 kW | I46: Rate Rider for Global Adjustment Sub-Account Disposition (2010) – Effective until April 30, 2012 Applicable only for Non-RPP Customers | AA46: Owner Requested Disconnection/Reconnection – during regular hours | AM46: London Hydro Inc. | AO46: General Service Less Than 50 kW – Three Phase energy-billed [G3] | AP46: kWh
A47: General Service Intermediate 1,000 To 4,999 kW | I47: Rate Rider for Global Adjustment Sub-Account Disposition (2010) – Effective until April 30, 2014 Applicable only for Non-RPP Customers | AA47: Returned cheque (plus bank charges) | AM47: Midland Power Utility Corporation | AO47: General Service Less Than 50 kW – Transmission Class energy-billed [T] | AP47: kWh
A48: General Service Intermediate Rate Class 1,000 To 4,999 kW (formerly General Service > 50 kW Customers) | I48: Rate Rider for Global Adjustment Sub-Account Disposition (2011) – Applicable only for Non-RPP Customers and excluding Wholesale Market Participants | AA48: Rural system expansion / line connection fee | AM48: Milton Hydro Distribution Inc. | AO48: General Service Less Than 50 kW – Urban energy-billed [UG] | AP48: kWh
A49: General Service Intermediate Rate Class 1,000 To 4,999 kW (formerly Large Use Customers) | I49: Rate Rider for Global Adjustment Sub-Account Disposition (2011) – Effective until April 30, 2014 Applicable only for Non-RPP Customers | AA49: Same Day Open Trench | AM49: Newmarket – Tay Power Distribution Ltd. | AO49: General Service Single Phase – G1 | AP49: kW
A50: Large Use | I50: Rate Rider for Global Adjustment Sub-Account Disposition (2012) – Effective until March 31, 2013 Applicable only for Non-RPP Customers | AA50: Scheduled Day Open Trench | AM50: Niagara Peninsula Energy Inc. | AO50: General Service Three Phase – G3 | AP50: kW
A51: Large Use - 3TS | I51: Rate Rider for Global Adjustment Sub-Account Disposition (2012) – Effective until April 30, 2013 Applicable only for Non-RPP Customers | AA51: Service call – after regular hours | AM51: Niagara-on-the-Lake Hydro Inc. | AO51: Intermediate With Self Generation | AP51: kW
A52: Large Use - Ford Annex | I52: Rate Rider for Global Adjustment Sub-Account Disposition (2012) – Effective until April 30, 2014 Applicable only for Non-RPP Customers | AA52: Service call – customer owned equipment | AM52: Norfolk Power Distribution Ltd. | AO52: Large Use | AP52: kW
A53: Large Use - Regular | I53: Rate Rider for Lost Revenue Adjustment Mechanism (LRAM) Recovery | AA53: Service Call – Customer-owned Equipment – After Regular Hours | AM53: North Bay Hydro Distribution Limited | AO53: Large Use - 3TS | AP53: kW
A54: Large Use > 5000 kW | I54: Rate Rider for Lost Revenue Adjustment Mechanism (LRAM) Recovery – Effective until April 30, 2013 | AA54: Service Call – Customer-owned Equipment – During Regular Hours | AM54: Northern Ontario Wires Inc. | AO54: Large Use - Ford Annex | AP54: kW
A55: MicroFit | I55: Rate Rider for Lost Revenue Adjustment Mechanism (LRAM) Recovery – Effective until April 30, 2014 | AA55: Service Charge for onsite interrogation of interval meter due to customer phone line failure - required weekly until line repaired $ 6 | AM55: Oakville Hydro Distribution Inc. | AO55: Large Use - Regular | AP55: kW
A56: Sentinel Lighting | I56: Rate Rider for Lost Revenue Adjustment Mechanism (LRAM) Recovery – Effective until December 31, 2012 | AA56: Service Layout - Commercial | AM56: Orangeville Hydro Limited | AO56: Large Use > 5000 kW | AP56: kW
A57: Stand-By | I57: Rate Rider for Lost Revenue Adjustment Mechanism (LRAM) Recovery (2010) | AA57: Service Layout - ResidentiaI | AM57: Orillia Power Distribution Corp. | AO57: MicroFit | AP57: $
A58: Street Lighting | I58: Rate Rider for Lost Revenue Adjustment Mechanism (LRAM) Recovery (2011) | AA58: Special Billing Service (sub-metering charge per meter) | AM58: Oshawa PUC Networks Inc. | AO58: Residential | AP58: kWh
A59: Unmetered Scattered Load | I59: Rate Rider for Lost Revenue Adjustment Mechanism (LRAM) Recovery / Shared Savings Mechanism (SSM) Recovery | AA59: Special meter reads | AM59: Ottawa River Power Corporation | AO59: Residential - Hensall | AP59: kWh
A60: Embedded Distributor | I60: Rate Rider for Lost Revenue Adjustment Mechanism (LRAM) Recovery / Shared Savings Mechanism (SSM) Recovery – Effective until April 30, 2015 | AA60: Specific Charge for Access to the Power Poles - $/pole/year | AM60: Parry Sound Power Corporation | AO60: Residential – High Density [R1] | AP60: kWh
A61: Farms – Single Phase energy-billed [F1] | I61: Rate Rider for Lost Revenue Adjustment Mechanism (LRAM) Recovery / Shared Savings Mechanism (SSM) Recovery (2009) | AA61: Specific Charge for Bell Canada Access to the Power Poles – per pole/year | AM61: Peterborough Distribution Inc. | AO61: Residential – Normal Density [R2] | AP61: kWh
A62: Farms – Three Phase energy-billed [F3] | I62: Rate Rider for Lost Revenue Adjustment Mechanism (LRAM) Recovery / Shared Savings Mechanism (SSM) Recovery (2010) | AA62: Switching for company maintenance – Charge based on Time and Materials | AM62: PowerStream Inc. | AO62: Residential - Time of Use | AP62: kWh
A63: General Service Single Phase – G1 | I63: Rate Rider for Lost Revenue Adjustment Mechanism (LRAM) Recovery / Shared Savings Mechanism (SSM) Recovery (2011) | AA63: Temporary Service – Install & remove – overhead – no transformer | AM63: PUC Distribution Inc. | AO63: Residential – Urban [UR] | AP63: kWh
A64: General Service Three Phase – G3 | I64: Rate Rider for Lost Revenue Adjustment Mechanism (LRAM) Recovery / Shared Savings Mechanism (SSM) Recovery (2012) | AA64: Temporary Service – Install & remove – overhead – with transformer | AM64: Renfrew Hydro Inc. | AO64: Residential Regular | AP64: kWh
A65: Intermediate With Self Generation | I65: Rate Rider for Lost Revenue Adjustment Mechanism (LRAM) Recovery / Shared Savings Mechanism (SSM) Recovery (2012) - Effective until April 30, 2013 | AA65: Temporary Service – Install & remove – underground – no transformer | AM65: Rideau St. Lawrence Distribution Inc. | AO65: Residential Suburban | AP65: kWh
A66: Residential - Hensall | I66: Rate Rider for Lost Revenue Adjustment Mechanism (LRAM) Recovery / Shared Savings Mechanism (SSM) Recovery (2012) – Effective until April 30, 2014 | AA66: Temporary service install & remove – overhead – no transformer | AM66: St. Thomas Energy Inc. | AO66: Residential Suburban Seasonal | AP66: kWh
A67: Residential – High Density [R1] | I67: Rate Rider for Lost Revenue Adjustment Mechanism (LRAM) Recovery (2011) – Effective until December 31, 2012 | AA67: Temporary Service Install & Remove – Overhead – With Transformer | AM67: Sioux Lookout Hydro Inc. | AO67: Residential Suburban Year Round | AP67: kWh
A68: Residential – Normal Density [R2] | I68: Rate Rider for Lost Revenue Adjustment Mechanism (LRAM) Recovery (2012) – Effective until December 31, 2012 | AA68: Temporary Service Install & Remove – Underground – No Transformer | AM68: Thunder Bay Hydro Electricity Distribution | AO68: Residential Urban | AP68: kWh
A69: Residential – Urban [UR] | I69: Rate Rider for Lost Revenue Adjustment Mechanism (LRAM) Recovery/Shared Savings Mechanism (SSM) Recovery – Effective until March 31, 2016 | AA69: Temporary service installation and removal – overhead – no transformer | AM69: Tillsonburg Hydro Inc. | AO69: Residential Urban Year-Round | AP69: kWh
A70: Residential Suburban | I70: Rate Rider for Recalculated Deferral/Variance Account Disposition (2010) | AA70: Temporary service installation and removal – overhead – with transformer | AM70: Toronto Hydro-Electric System Limited | AO70: Seasonal Residential – High Density [R3] | AP70: kWh
A71: Residential Suburban Seasonal | I71: Rate Rider for Recovery of Foregone Revenue | AA71: Temporary service installation and removal – underground – no transformer | AM71: Veridian Connections Inc. | AO71: Seasonal Residential – Normal Density [R4] | AP71: kWh
A72: Residential Suburban Year Round | I72: Rate Rider for Recovery of Foregone Revenue – Effective until December 31, 2012 | AM72: Wasaga Distribution Inc. | AO72: Seasonal Residential – R4 | AP72: kWh
A73: Residential Urban Year-Round | I73: Rate Rider for Recovery of Incremental Capital Costs | AM73: Waterloo North Hydro Inc. | AO73: Sentinel Lighting | AP73: kW
A74: Seasonal Residential – High Density [R3] | I74: Rate Rider for Recovery of Late Payment – Effective until April 30, 2012 | AM74: Welland Hydro Electric System Corp. | AO74: Small Commercial and USL - per connection | AP74: kW
A75: Seasonal Residential – Normal Density [R4] | I75: Rate Rider for Recovery of Late Payment Penalty Litigation Costs | AM75: Wellington North Power Inc. | AO75: Small Commercial and USL - per meter | AP75: kW
A76: Seasonal Residential – R4 | I76: Rate Rider for Recovery of Late Payment Penalty Litigation Costs (per connection) | AM76: West Coast Huron Energy Inc. | AO76: Standard A General Service Air Access | AP76: kW
A77: Small Commercial and USL - per connection | I77: Rate Rider for Recovery of Late Payment Penalty Litigation Costs – Effective until April 30, 2012 | AM77: Westario Power Inc. | AO77: Standard A General Service Road/Rail | AP77: kW
A78: Small Commercial and USL - per meter | I78: Rate Rider for Recovery of Stranded Meter Assets | AM78: Whitby Hydro Electric Corporation | AO78: Standard A Residential Air Access | AP78: kW
A79: Standard A General Service Air Access | I79: Rate Rider for Recovery of Stranded Meter Assets – Effective until March 31, 2016 | AM79: Woodstock Hydro Services Inc. | AO79: Standard A Residential Road/Rail | AP79: kW
A80: Standard A General Service Road/Rail | I80: Rate Rider for Recovery of Stranded Meter Assets – Effective until December 31, 2012 | AO80: Stand-By | AP80: kW
A81: Standard A Residential Air Access | I81: Rate Rider for Regulatory Asset Recovery | AO81: Standby - General Service 1,000 - 5,000 kW | AP81: kW
A82: Standard A Residential Road/Rail | I82: Rate Rider for Recovery of Residual Historical Smart Meter Costs – Effective until March 31, 2013 | AO82: Standby - General Service 50 - 1,000 kW | AP82: kW
A83: Standby - General Service 1,000 - 5,000 kW | I83: Rate Rider for Return of Revenue Sufficiency | AO83: Standby - Large Use | AP83: kW
A84: Standby - General Service 50 - 1,000 kW | I84: Rate Rider for Return of Transformer Ownership Allowance Sufficiency | AO84: Standby Distribution Service | AP84: kW
A85: Standby - Large Use | I85: Rate Rider for Smart Meter Incremental Revenue Requirement – in effect until the Effective date of the next cost of service application | AO85: Standby Power | AP85: kW
A86: Standby Distribution Service | I86: Rate Rider for Tax Adjustments - Effective until April 30, 2013 | AO86: Standby Power - APPROVED ON AN INTERIM BASIS | AP86: kW
A87: Standby Power | I87: Rate Rider for Tax Adjustments – Effective until December 31, 2012 | AO87: Standby Power – INTERIM APPROVAL | AP87: kW
A88: Standby Power - APPROVED ON AN INTERIM BASIS | I88: Rate Rider for Tax Change | AO88: Standby Power General Service 1,500 to 4,999 kW | AP88: kW
A89: Standby Power – INTERIM APPROVAL | I89: Rate Rider for Tax Change – Effective until April 30, 2012 | AO89: Standby Power General Service 50 to 1,499 kW | AP89: kW
A90: Standby Power General Service 1,500 to 4,999 kW | I90: Rate Rider for Tax Change – Effective until April 30, 2013 | AO90: Standby Power General Service Large Use | AP90: kW
A91: Standby Power General Service 50 to 1,499 kW | I91: Rate Rider for Tax Change – Hydro One Networks | AO91: Street Lighting | AP91: kW
A92: Standby Power General Service Large Use | I92: Rate Rider for Tax Change – Waterloo North Hydro | AO92: Unmetered Scattered Load | AP92: kWh
A93: Westport Sewage Treatment Plant | I93: Rate Rider for Tax Change Dedicated LV Line | AO93: Westport Sewage Treatment Plant | AP93: kW
A94: Year-Round Residential – R2 | I94: Rate Rider for Tax Change Shared LV Line | AO94: Year-Round Residential – R2 | AP94: kWh
I95: Rate Rider for Z-Factor Recovery
I96: Rate Rider for Z-Factor Recovery - Effective Until April 30,2013
I97: Retail Transmission Rate - Line and Transformation Connection Service Rate
I98: Retail Transmission Rate - Line and Transformation Connection Service Rate - (less than 1,000 kW)
I99: Retail Transmission Rate - Line and Transformation Connection Service Rate - Interval Metered
I100: Retail Transmission Rate - Line and Transformation Connection Service Rate - Interval Metered (1,000 to 4,999 kW)
I101: Retail Transmission Rate - Line and Transformation Connection Service Rate - Interval Metered (less than 1,000 kW)
I102: Retail Transmission Rate - Line and Transformation Connection Service Rate - Interval Metered < 1,000 kW
I103: Retail Transmission Rate - Line and Transformation Connection Service Rate - Interval Metered > 1,000 kW
I104: Retail Transmission Rate - Line and Transformation Connection Service Rate - Interval Metered ≥ 1,000kW
I105: Retail Transmission Rate - Line Connection Service Rate
I106: Retail Transmission Rate - Network Service Rate
I107: Retail Transmission Rate - Network Service Rate - (less than 1,000 kW)
I108: Retail Transmission Rate - Network Service Rate - Interval Metered
I109: Retail Transmission Rate - Network Service Rate - Interval Metered (1,000 to 4,999 kW)
I110: Retail Transmission Rate - Network Service Rate - Interval Metered (less than 1,000 kW)
I111: Retail Transmission Rate - Network Service Rate - Interval Metered < 1,000 kW
I112: Retail Transmission Rate - Network Service Rate - Interval Metered > 1,000 kW
I113: Retail Transmission Rate - Network Service Rate - Interval Metered ≥ 1,000 kW
I114: Retail Transmission Rate - Transformation Connection Service Rate
I115: Rural Rate Protection Charge
I116: Rural Rate Protection Charge – Effective on and after May 1, 2012
I117: Service Charge
I118: Service Charge - Effective Until April 30, 2013
I119: Service Charge (Based on 30 day month)
I120: Service Charge (per account)
I121: Service Charge (per connection)
I122: Service Charge (per customer)
I123: Service Charge (per light)
I124: Service Charge for metered account
I125: Smart Grid Rate Adder
I126: Smart Meter Disposition Rider 2 – Effective until next cost of service application
I127: Smart Meter Disposition Rider 3 – Effective until next cost of service application
I128: Smart Meter Funding Adder
I129: Smart Meter Funding Adder – Effective until March 31, 2012
I130: Smart Meter Funding Adder – Effective Until December 31, 2012
I131: Smart Meter Funding Adder – Effective until October 31, 2012
I132: Standard Supply Service – Administrative Charge (if Applicable)
I133: Wholesale Market Service Rate
